{"text_format":"1","workbook":"xlsx","n_sheets":9,"sheets":["ТИТУЛ","РОЗПОДІЛ","НАВЧАЛЬНА РОБОТА","МЕТОД+НАУК+ОРГАН","ЗМІНИ ТА ВИСНОВКИ","метод","наук","органз","СПИСКИ"],"not_rendered":{"charts":0,"images":0,"macros":1,"external_links":0,"defined_names":23,"comments":0,"pivot_tables":0},"unopened":[],"bounds":{"document_bytes":16777216,"sheet_cells":100000,"rows_first":2000,"rows_last":500,"rows_between":2000,"halvings":0,"cell_chars":16384,"cell_head_chars":4096},"cells_cut":0,"cells_raw":0,"read":"whole","date_system":"1900"}

{"sheet":"ТИТУЛ","index":0,"n_rows":36,"n_cols":14,"rows_kept":36,"cut":false,"hidden":false,"merged":[[33,5,33,6],[7,12,8,12],[7,13,8,13],[11,12,12,12],[11,13,12,13],[23,12,24,12],[23,13,24,13],[33,12,34,12],[24,0,24,6],[34,5,34,6],[32,4,32,6],[33,0,35,0],[35,5,35,6],[0,0,0,6],[18,0,18,6],[19,0,19,6],[23,0,23,6],[10,0,11,0],[8,1,8,5],[11,1,11,5]]}
["МІНІСТЕРСТВО ОСВІТИ І НАУКИ УКРАЇНИ                                                                                                                     ХАРКІВСЬКИЙ НАЦІОНАЛЬНИЙ ЕКОНОМІЧНИЙ УНІВЕРСИТЕТ                                      ІМЕНІ СЕМЕНА КУЗНЕЦЯ"]
[null,null,null,null,null,null,null,{"$f":"VLOOKUP(B9,СПИСКИ!$A$3:$B$8,2,FALSE)","v":301},{"$f":"VLOOKUP(H2,СПИСКИ!$D$3:$E$39,2,FALSE)","v":"Менеджменту, логістики та інновацій"},1,"2024/2025",{"$f":"IFERROR(I2,\" \")","v":"Менеджменту, логістики та інновацій"}]
[null,null,null,null,null,null,null,{"$f":"H2+1","v":302},{"$f":"VLOOKUP(H3,СПИСКИ!$D$3:$E$39,2,FALSE)","v":"Менеджменту, бізнесу і адміністрування"},0.75,"2025/2026","Менеджменту, бізнесу і адміністрування"]
[null,null,null,null,null,null,null,{"$f":"H3+1","v":303},{"$f":"VLOOKUP(H4,СПИСКИ!$D$3:$E$39,2,FALSE)","v":"Маркетингу"},0.5,"2026/2027","Маркетингу"]
[null,null,null,null,null,null,null,304,{"$f":"VLOOKUP(H5,СПИСКИ!$D$3:$E$39,2,FALSE)","v":"Бізнес-журналістики і цифрових медіа"},0.25,"2027/2028","Бізнес-журналістики і цифрових медіа"]
[null,null,null,null,null,null,null,305,{"$f":"VLOOKUP(H6,СПИСКИ!$D$3:$E$39,2,FALSE)","v":"Психології і соціології"},null,"2028/2029","Психології і соціології"]
[null,null,null,null,null,null,null,306,{"$f":"VLOOKUP(H7,СПИСКИ!$D$3:$E$39,2,FALSE)","v":"Креативного менеджменту і дизайну"},null,"2029/2030","Креативного менеджменту і дизайну"]
[null,null,null,null,null,null,null,307,{"$f":"VLOOKUP(H8,СПИСКИ!$D$3:$E$39,2,FALSE)","v":{"$error":"#N/A"}},null,"2030/2031"," ","E","Вибрати з випадаючого списку"]
["Інститут / Факультет","Менеджменту і маркетингу",null,null,null,null,null,308,{"$f":"VLOOKUP(H9,СПИСКИ!$D$3:$E$39,2,FALSE)","v":{"$error":"#N/A"}},null,null," "]
[null,null,null,null,null,null,null,null,null,null,null,0]
["Кафедра",null,null,null,null,null,null,null,null,null,null,0]
[null,"Креативного менеджменту і дизайну",null,null,null,null,null,null,null,null,null,0,"E","Вибрати з випадаючого списку"]
[]
[]
[]
[]
[]
[]
["ІНДИВІДУАЛЬНИЙ ПЛАН"]
["РОБОТИ ВИКЛАДАЧА "]
[]
[]
[]
[null,null,null,null,null,null,null,null,null,null,null,null,"E","Ввести інформацію "]
["(прізвище, ім'я, по батькові)"]
[]
[null,null,"Дата",null,"Дата","Ставка або її частина"]
[null,"працює з ",null,"по "]
[null,"працює з ",null,"по "]
[null,"працює з ",null,"по "]
[]
[]
["Навчальний рік","Посада","Науковий ступінь","Вчене звання","Примітка"]
["2025/2026",null," ",null,null,null,null,null,null,null,null,null,"E","Вибрати з випадаючого списку, окрім позиції \"Науковий ступінь\""]
[null,null," "]
[null,null," ",null,null,null,null,null,null,null,null,null,null,"Ввести інформацію в позицію \"Науковий ступінь\""]

{"sheet":"РОЗПОДІЛ","index":1,"n_rows":31,"n_cols":8,"rows_kept":31,"cut":false,"hidden":false,"merged":[[8,0,8,4],[24,0,24,1],[0,2,1,4],[2,1,2,4],[3,0,3,4],[4,0,4,4],[5,0,5,4],[9,0,9,4],[31,0,31,4],[24,6,25,6],[24,7,25,7],[10,0,10,4],[12,0,12,4],[13,0,13,2],[14,0,14,2],[16,0,16,2],[17,0,17,2],[18,0,18,2],[15,0,15,2],[21,0,21,4],[22,0,22,4],[30,0,30,4]]}
[]
[null,null,null,null,null,null,{"$f":"ТИТУЛ!E34*1548","v":0}," - загальна кількость годин"]
[]
[]
[]
[]
[]
[]
[]
[]
["РОЗПОДІЛ ЗАГАЛЬНОГО РОБОЧОГО ЧАСУ"]
[]
["Повний обсяг роботи за індивідуальним планом:"]
["За видами робіт:",null,null,"План","Факт"]
["І. Навчальна",null,null,{"$f":"'НАВЧАЛЬНА РОБОТА'!AA68","v":0},{"$f":"'НАВЧАЛЬНА РОБОТА'!AB68","v":0},{"$f":"E19*30/100","v":0},"не більше 30%"]
["ІІ. Методична",null,null,{"$f":"'МЕТОД+НАУК+ОРГАН'!E18","v":0},{"$f":"'МЕТОД+НАУК+ОРГАН'!F18","v":0}]
["ІII. Наукова",null,null,{"$f":"'МЕТОД+НАУК+ОРГАН'!E30","v":0},{"$f":"'МЕТОД+НАУК+ОРГАН'!F30","v":0},{"$f":"E19*30/100","v":0},"не менше 30%"]
["IV. Організаційна",null,null,{"$f":"'МЕТОД+НАУК+ОРГАН'!E39","v":0},{"$f":"'МЕТОД+НАУК+ОРГАН'!F39","v":0}]
["Загальна кількість годин",null,null,{"$f":"SUM(D15:D18)","v":0},{"$f":"SUM(E15:E18)","v":0},null,{"$f":"G2-D19","v":0},{"$f":"IF(G19=0,0,\"- відхілення від норматива\")","v":0}]
[]
[null,null,null,null,null,{"$f":"774-D19","v":774}]
[]
[{"$f":"CONCATENATE(\"Індивідуальний план склав _______________________ / \",ТИТУЛ!A24,\" /\")","v":"Індивідуальний план склав _______________________ /  /"}]
[]
["План розглянуто на засіданні кафедри",null,"__.__.2025 р. Протокол №__",null,null,null,"E","внести інформацію"]
[]
[]
[]
[]
[]
[{"$f":"CONCATENATE(\"Директор (керівник) навчально-наукового інституту____________________\",IF(ТИТУЛ!B9=СПИСКИ!A3,СПИСКИ!C3,IF(ТИТУЛ!B9=СПИСКИ!A4,СПИСКИ!C4,IF(ТИТУЛ!B9=СПИСКИ!A5,СПИСКИ!C5,IF(ТИТУЛ!B9=СПИСКИ!A6,СПИСКИ!C6,IF(ТИТУЛ!B9=СПИСКИ!#REF!,СПИСКИ!#REF!,IF(ТИТУЛ!B9=СПИСКИ!A8,СПИСКИ!C8,IF(ТИТУЛ!B9=СПИСКИ!A7,СПИСКИ!C7,0))))))))","v":"Директор (керівник) навчально-наукового інституту____________________Вовк В.А."}]

{"sheet":"НАВЧАЛЬНА РОБОТА","index":2,"n_rows":73,"n_cols":30,"rows_kept":73,"cut":false,"hidden":false,"merged":[[21,0,32,0],[34,0,49,0],[67,0,67,7],[33,0,33,7],[62,0,62,7],[63,0,63,13],[66,0,66,13],[64,0,64,7],[65,0,65,7],[50,0,61,0],[49,1,49,7],[61,1,61,7],[1,0,3,0],[1,18,2,19],[1,22,2,23],[63,14,63,27],[66,14,66,27],[1,26,2,27],[1,24,2,25],[1,20,2,21],[32,1,32,7],[1,16,2,17],[1,4,3,4],[4,0,20,0],[20,1,20,7],[1,8,2,9],[1,1,3,1],[1,2,3,2],[1,3,3,3],[1,5,3,5],[1,6,3,6],[1,14,2,15],[1,10,2,11],[1,12,2,13],[1,7,3,7]]}
["І. НАВЧАЛЬНА РОБОТА"]
["Форма навчання","№ п/п","Назва навчальних дисциплін і видів навчальної роботи","Спеціальність, інститут /факультет","Мова навчання","Курс навчання","Кількість здобувачів","Шифр груп (потоків)","Читання лекцій",null,"Проведення практичних (семінарських) занять",null,"Проведення лабораторних занять",null,"Проведення екзаменаційних консультацій",null,"Керівництво і прийняття курсових проєктів, робіт ",null,"Керівництво навчальною                  і виробничою практикою",null,"Участь в ЕК",null,"Проведення кваліфікаційного іспита за спеціальністю/ вступних випробувань",null,"Керівництво, консультування, рецензування та проведення захисту дипломних проєктів (робіт)",null,"УСЬОГО"]
[]
[null,null,null,null,null,null,null,null,"план","факт","план","факт","план","факт","план","факт","план","факт","план","факт","план","факт","план","факт","план","факт","план","факт"]
["очна (денна)",{"$f":"IF(C5=0,0,1)","v":0},null,null,null,null,null,null,null,null,null,null,null,null,null,null,null,null,null,null,null,null,null,null,null,null,{"$f":"I5+K5+M5+O5+Q5+S5+U5+W5+Y5","v":0},{"$f":"J5+L5+N5+P5+R5+T5+V5+X5+Z5","v":0}]
[null,{"$f":"IF(C6=0,0,1)","v":0},null,null,null,null,null,null,null,null,null,null,null,null,null,null,null,null,null,null,null,null,null,null,null,null,{"$f":"I6+K6+M6+O6+Q6+S6+U6+W6+Y6","v":0},{"$f":"J6+L6+N6+P6+R6+T6+V6+X6+Z6","v":0}]
[null,{"$f":"IF(C7=0,0,1)","v":0},null,null,null,null,null,null,null,null,null,null,null,null,null,null,null,null,null,null,null,null,null,null,null,null,0,0]
[null,0,null,null,null,null,null,null,null,null,null,null,null,null,null,null,null,null,null,null,null,null,null,null,null,null,0,0]
[null,0,null,null,null,null,null,null,null,null,null,null,null,null,null,null,null,null,null,null,null,null,null,null,null,null,0,0]
[null,0,null,null,null,null,null,null,null,null,null,null,null,null,null,null,null,null,null,null,null,null,null,null,null,null,0,0]
[null,0,null,null,null,null,null,null,null,null,null,null,null,null,null,null,null,null,null,null,null,null,null,null,null,null,0,0]
[null,0,null,null,null,null,null,null,null,null,null,null,null,null,null,null,null,null,null,null,null,null,null,null,null,null,0,0]
[null,0,null,null,null,null,null,null,null,null,null,null,null,null,null,null,null,null,null,null,null,null,null,null,null,null,0,0]
[null,0,null,null,null,null,null,null,null,null,null,null,null,null,null,null,null,null,null,null,null,null,null,null,null,null,0,0]
[null,0,null,null,null,null,null,null,null,null,null,null,null,null,null,null,null,null,null,null,null,null,null,null,null,null,0,0]
[null,0,null,null,null,null,null,null,null,null,null,null,null,null,null,null,null,null,null,null,null,null,null,null,null,null,0,0]
[null,0,null,null,null,null,null,null,null,null,null,null,null,null,null,null,null,null,null,null,null,null,null,null,null,null,0,0]
[null,0,null,null,null,null,null,null,null,null,null,null,null,null,null,null,null,null,null,null,null,null,null,null,null,null,0,0]
[null,0,null,null,null,null,null,null,null,null,null,null,null,null,null,null,null,null,null,null,null,null,null,null,null,null,0,0]
[null,0,null,null,null,null,null,null,null,null,null,null,null,null,null,null,null,null,null,null,null,null,null,null,null,null,0,0]
[null,"УСЬОГО очна (денна) за І семестр",null,null,null,null,null,null,{"$f":"SUM(I5:I20)","v":0},0,0,0,0,0,0,0,0,0,0,0,0,0,{"$f":"SUM(W5:W20)","v":0},0,0,0,{"$f":"SUM(AA5:AA20)","v":0},{"$f":"SUM(AB5:AB20)","v":0}]
["заочна",{"$f":"IF(C22=0,0,1)","v":0},null,null,null,null,null,null,null,null,null,null,null,null,null,null,null,null,null,null,null,null,null,null,null,null,{"$f":"I22+K22+M22+O22+Q22+S22+U22+W22+Y22","v":0},{"$f":"J22+L22+N22+P22+R22+T22+V22+X22+Z22","v":0}]
[null,{"$f":"IF(C23=0,0,1)","v":0},null,null,null,null,null,null,null,null,null,null,null,null,null,null,null,null,null,null,null,null,null,null,null,null,{"$f":"I23+K23+M23+O23+Q23+S23+U23+W23+Y23","v":0},{"$f":"J23+L23+N23+P23+R23+T23+V23+X23+Z23","v":0}]
[null,0,null,null,null,null,null,null,null,null,null,null,null,null,null,null,null,null,null,null,null,null,null,null,null,null,0,0]
[null,0,null,null,null,null,null,null,null,null,null,null,null,null,null,null,null,null,null,null,null,null,null,null,null,null,0,0]
[null,0,null,null,null,null,null,null,null,null,null,null,null,null,null,null,null,null,null,null,null,null,null,null,null,null,0,0]
[null,{"$f":"IF(C27=0,0,1)","v":0},null,null,null,null,null,null,null,null,null,null,null,null,null,null,null,null,null,null,null,null,null,null,null,null,0,0]
[null,0,null,null,null,null,null,null,null,null,null,null,null,null,null,null,null,null,null,null,null,null,null,null,null,null,0,0]
[null,0,null,null,null,null,null,null,null,null,null,null,null,null,null,null,null,null,null,null,null,null,null,null,null,null,0,0]
[null,0,null,null,null,null,null,null,null,null,null,null,null,null,null,null,null,null,null,null,null,null,null,null,null,null,0,0]
[null,0,null,null,null,null,null,null,null,null,null,null,null,null,null,null,null,null,null,null,null,null,null,null,null,null,0,0]
[null,0,null,null,null,null,null,null,null,null,null,null,null,null,null,null,null,null,null,null,null,null,null,null,null,null,0,0]
[null,"УСЬОГО заочна за І семестр",null,null,null,null,null,null,{"$f":"SUM(I22:I32)","v":0},{"$f":"SUM(J22:J32)","v":0},0,0,0,0,0,0,0,0,0,0,{"$f":"SUM(U22:U32)","v":0},{"$f":"SUM(V22:V32)","v":0},0,0,0,0,{"$f":"SUM(AA22:AA32)","v":0},{"$f":"SUM(AB22:AB32)","v":0}]
["РАЗОМ ЗА І СЕМЕСТР",null,null,null,null,null,null,null,{"$f":"I21+I33","v":0},{"$f":"J21+J33","v":0},{"$f":"K21+K33","v":0},0,0,0,0,0,0,0,0,0,{"$f":"U21+U33","v":0},{"$f":"V21+V33","v":0},0,0,0,0,{"$f":"AA21+AA33","v":0},{"$f":"AB21+AB33","v":0}]
["очна (денна)",{"$f":"IF(C35=0,0,1)","v":0},null,null,null,null,null,null,null,null,null,null,null,null,null,null,null,null,null,null,null,null,null,null,null,null,{"$f":"I35+K35+M35+O35+Q35+S35+U35+W35+Y35","v":0},{"$f":"J35+L35+N35+P35+R35+T35+V35+X35+Z35","v":0}]
[null,{"$f":"IF(C36=0,0,1)","v":0},null,null,null,null,null,null,null,null,null,null,null,null,null,null,null,null,null,null,null,null,null,null,null,null,{"$f":"I36+K36+M36+O36+Q36+S36+U36+W36+Y36","v":0},{"$f":"J36+L36+N36+P36+R36+T36+V36+X36+Z36","v":0}]
[null,{"$f":"IF(C37=0,0,1)","v":0},null,null,null,null,null,null,null,null,null,null,null,null,null,null,null,null,null,null,null,null,null,null,null,null,0,0]
[null,0,null,null,null,null,null,null,null,null,null,null,null,null,null,null,null,null,null,null,null,null,null,null,null,null,0,0]
[null,0,null,null,null,null,null,null,null,null,null,null,null,null,null,null,null,null,null,null,null,null,null,null,null,null,0,0]
[null,0,null,null,null,null,null,null,null,null,null,null,null,null,null,null,null,null,null,null,null,null,null,null,null,null,0,0]
[null,0,null,null,null,null,null,null,null,null,null,null,null,null,null,null,null,null,null,null,null,null,null,null,null,null,0,0]
[null,0,null,null,null,null,null,null,null,null,null,null,null,null,null,null,null,null,null,null,null,null,null,null,null,null,0,0]
[null,0,null,null,null,null,null,null,null,null,null,null,null,null,null,null,null,null,null,null,null,null,null,null,null,null,0,0]
[null,0,null,null,null,null,null,null,null,null,null,null,null,null,null,null,null,null,null,null,null,null,null,null,null,null,0,0]
[null,0,null,null,null,null,null,null,null,null,null,null,null,null,null,null,null,null,null,null,null,null,null,null,null,null,0,0]
[null,0,null,null,null,null,null,null,null,null,null,null,null,null,null,null,null,null,null,null,null,null,null,null,null,null,0,0]
[null,0,null,null,null,null,null,null,null,null,null,null,null,null,null,null,null,null,null,null,null,null,null,null,null,null,0,0]
[null,0,null,null,null,null,null,null,null,null,null,null,null,null,null,null,null,null,null,null,null,null,null,null,null,null,0,0]
[null,0,null,null,null,null,null,null,null,null,null,null,null,null,null,null,null,null,null,null,null,null,null,null,null,null,0,0]
[null,"УСЬОГО очна (денна) за ІІ семестр",null,null,null,null,null,null,{"$f":"SUM(I35:I49)","v":0},0,0,0,0,0,0,0,0,0,0,0,0,0,0,0,0,0,0,0]
["заочна",{"$f":"IF(C51=0,0,1)","v":0},null,null,null,null,null,null,null,null,null,null,null,null,null,null,null,null,null,null,null,null,null,null,null,null,{"$f":"I51+K51+M51+O51+Q51+S51+U51+W51+Y51","v":0},{"$f":"J51+L51+N51+P51+R51+T51+V51+X51+Z51","v":0}]
[null,{"$f":"IF(C52=0,0,1)","v":0},null,null,null,null,null,null,null,null,null,null,null,null,null,null,null,null,null,null,null,null,null,null,null,null,{"$f":"I52+K52+M52+O52+Q52+S52+U52+W52+Y52","v":0},{"$f":"J52+L52+N52+P52+R52+T52+V52+X52+Z52","v":0}]
[null,0,null,null,null,null,null,null,null,null,null,null,null,null,null,null,null,null,null,null,null,null,null,null,null,null,0,0]
[null,0,null,null,null,null,null,null,null,null,null,null,null,null,null,null,null,null,null,null,null,null,null,null,null,null,0,0]
[null,0,null,null,null,null,null,null,null,null,null,null,null,null,null,null,null,null,null,null,null,null,null,null,null,null,0,0]
[null,0,null,null,null,null,null,null,null,null,null,null,null,null,null,null,null,null,null,null,null,null,null,null,null,null,0,0]
[null,{"$f":"IF(C57=0,0,1)","v":0},null,null,null,null,null,null,null,null,null,null,null,null,null,null,null,null,null,null,null,null,null,null,null,null,0,0]
[null,0,null,null,null,null,null,null,null,null,null,null,null,null,null,null,null,null,null,null,null,null,null,null,null,null,0,0]
[null,0,null,null,null,null,null,null,null,null,null,null,null,null,null,null,null,null,null,null,null,null,null,null,null,null,0,0]
[null,0,null,null,null,null,null,null,null,null,null,null,null,null,null,null,null,null,null,null,null,null,null,null,null,null,0,0]
[null,0,null,null,null,null,null,null,null,null,null,null,null,null,null,null,null,null,null,null,null,null,null,null,null,null,0,0]
[null,"УСЬОГО заочна за ІІ семестр",null,null,null,null,null,null,{"$f":"SUM(I51:I61)","v":0},{"$f":"SUM(J51:J61)","v":0},0,0,0,0,0,0,0,0,0,0,0,0,0,0,0,0,{"$f":"SUM(AA51:AA61)","v":0},{"$f":"SUM(AB51:AB61)","v":0}]
["РАЗОМ ЗА ІІ СЕМЕСТР",null,null,null,null,null,null,null,{"$f":"I50+I62","v":0},{"$f":"J50+J62","v":0},0,0,0,0,0,0,0,0,0,0,0,0,0,0,0,0,0,0]
[]
["РАЗОМ за навчальний рік очна (денна)",null,null,null,null,null,null,null,{"$f":"I21+I50","v":0},0,0,0,0,0,0,0,0,0,0,0,0,0,0,0,0,0,0,0]
["РАЗОМ за навчальний рік (заочна)",null,null,null,null,null,null,null,{"$f":"I33+I62","v":0},0,0,0,0,0,0,0,0,0,0,0,0,0,0,0,0,0,{"$f":"AA62+AA33","v":0},{"$f":"AB62+AB33","v":0}]
[]
["УСЬОГО за навчальний рік",null,null,null,null,null,null,null,{"$f":"I65+I66","v":0},{"$f":"J65+J66","v":0},{"$f":"K65+K66","v":0},0,0,0,0,0,0,0,0,0,0,0,0,0,0,0,{"$f":"AA66+AA65","v":0},{"$f":"AB66+AB65","v":0}]
[]
[null,{"$f":"CONCATENATE(\"Затверджено на  засіданні  кафедри \",РОЗПОДІЛ!C25)","v":"Затверджено на  засіданні  кафедри __.__.2025 р. Протокол №__"},null,null,null,null,null,null,null,null,null,null,null,null,null,null,{"$f":"CONCATENATE(\"Завідувач кафедри _______________________________\",'НАВЧАЛЬНА РОБОТА'!AD70)","v":"Завідувач кафедри _______________________________Близнюк Т. П."},null,null,null,null,null,null,null,null,null,null,null,null,{"$f":"VLOOKUP(ТИТУЛ!B12,СПИСКИ!E3:F39,2,FALSE)","v":"Близнюк Т. П."}]
[]
[null,{"$f":"CONCATENATE(\"Викладач  _______________________________ / \",ТИТУЛ!A24,\" /\")","v":"Викладач  _______________________________ /  /"},null,null,null,null,null,null,null,null,null,null,null,null,null,null,null,null,null,null,null,null,null,null,null,null,null,null,null,{"$f":"VLOOKUP(ТИТУЛ!B9,СПИСКИ!A3:C8,3,FALSE)","v":"Вовк В.А."}]
[null,null,null,null,null,null,null,null,null,null,null,null,null,null,null,null,{"$f":"CONCATENATE(\"Директор (керівник) ННІ_______________________________/\",IF(ТИТУЛ!B9=СПИСКИ!A3,СПИСКИ!C3,IF(ТИТУЛ!B9=СПИСКИ!A4,СПИСКИ!C4,IF(ТИТУЛ!B9=СПИСКИ!A5,СПИСКИ!C5,IF(ТИТУЛ!B9=СПИСКИ!A6,СПИСКИ!C6,IF(ТИТУЛ!B9=СПИСКИ!#REF!,СПИСКИ!#REF!,IF(ТИТУЛ!B9=СПИСКИ!A8,СПИСКИ!C8,IF(ТИТУЛ!B9=СПИСКИ!A7,СПИСКИ!C7,0))))))))","v":"Директор (керівник) ННІ_______________________________/Вовк В.А."}]

{"sheet":"МЕТОД+НАУК+ОРГАН","index":3,"n_rows":40,"n_cols":7,"rows_kept":40,"cut":false,"hidden":false,"merged":[[18,1,18,4],[30,1,30,4],[39,1,39,4]]}
[null,"II.  МЕТОДИЧНА  РОБОТА"]
["№   п/п","Зміст","Підсумковий результат","Термін виконання","Плановий обсяг,                                год","Фактичний обсяг,                    год","ВВЕДІТЬ НОМЕР\nВІД 1-106"]
[{"$f":"IF(B3=0,0,1)","v":1},{"$f":"IFERROR(VLOOKUP(G3,метод!$C$14:$D$123,2,FALSE),\" \")","v":" "}]
[{"$f":"IF(B4=\" \",\" \",A3+1)","v":" "},{"$f":"IFERROR(VLOOKUP(G4,метод!$C$14:$D$123,2,FALSE),\" \")","v":" "}]
[{"$f":"IF(B5=\" \",\" \",A4+1)","v":" "},{"$f":"IFERROR(VLOOKUP(G5,метод!$C$14:$D$123,2,FALSE),\" \")","v":" "}]
[" ",{"$f":"IFERROR(VLOOKUP(G6,метод!$C$14:$D$123,2,FALSE),\" \")","v":" "}]
[" ",{"$f":"IFERROR(VLOOKUP(G7,метод!$C$14:$D$123,2,FALSE),\" \")","v":" "}]
[" ",{"$f":"IFERROR(VLOOKUP(G8,метод!$C$14:$D$123,2,FALSE),\" \")","v":" "}]
[{"$f":"IF(B9=\" \",\" \",A8+1)","v":" "},{"$f":"IFERROR(VLOOKUP(G9,метод!$C$14:$D$123,2,FALSE),\" \")","v":" "}]
[" ",{"$f":"IFERROR(VLOOKUP(G10,метод!$C$14:$D$123,2,FALSE),\" \")","v":" "}]
[" ",{"$f":"IFERROR(VLOOKUP(G11,метод!$C$14:$D$123,2,FALSE),\" \")","v":" "}]
[{"$f":"IF(B12=\" \",\" \",A11+1)","v":" "},{"$f":"IFERROR(VLOOKUP(G12,метод!$C$14:$D$123,2,FALSE),\" \")","v":" "}]
[" ",{"$f":"IFERROR(VLOOKUP(G13,метод!$C$14:$D$123,2,FALSE),\" \")","v":" "}]
[" ",{"$f":"IFERROR(VLOOKUP(G14,метод!$C$14:$D$123,2,FALSE),\" \")","v":" "}]
[" ",{"$f":"IFERROR(VLOOKUP(G15,метод!$C$14:$D$123,2,FALSE),\" \")","v":" "}]
[{"$f":"IF(B16=\" \",\" \",A15+1)","v":" "},{"$f":"IFERROR(VLOOKUP(G16,метод!$C$14:$D$123,2,FALSE),\" \")","v":" "}]
[" ",{"$f":"IFERROR(VLOOKUP(G17,метод!$C$14:$D$123,2,FALSE),\" \")","v":" "}]
[null,null,null,"Загальна кількість годин",{"$f":"SUM(E3:E17)","v":0},{"$f":"SUM(F3:F17)","v":0}]
[null,{"$f":"CONCATENATE(\"Викладач ______________      Завідувач кафедри  ____________       / \",'НАВЧАЛЬНА РОБОТА'!AD70,\" /\")","v":"Викладач ______________      Завідувач кафедри  ____________       / Близнюк Т. П. /"}]
[null,"ІІІ. НАУКОВА РОБОТА"]
["№   п/п","Зміст","Підсумковий результат ","Термін виконання","Плановий обсяг,                                год ","Фактичний обсяг,                    год ","ВВЕДІТЬ НОМЕР ВІД 201-281"]
[{"$f":"IF(B22=0,0,1)","v":1},{"$f":"IFERROR(VLOOKUP(G22,наук!$C$14:$D$102,2,FALSE),\" \")","v":" "}]
[{"$f":"IF(B23=\" \",\" \",A22+1)","v":" "},{"$f":"IFERROR(VLOOKUP(G23,наук!$C$14:$D$102,2,FALSE),\" \")","v":" "}]
[{"$f":"IF(B24=\" \",\" \",A23+1)","v":" "},{"$f":"IFERROR(VLOOKUP(G24,наук!$C$14:$D$102,2,FALSE),\" \")","v":" "}]
[" ",{"$f":"IFERROR(VLOOKUP(G25,наук!$C$14:$D$102,2,FALSE),\" \")","v":" "}]
[" ",{"$f":"IFERROR(VLOOKUP(G26,наук!$C$14:$D$102,2,FALSE),\" \")","v":" "}]
[" ",{"$f":"IFERROR(VLOOKUP(G27,наук!$C$14:$D$102,2,FALSE),\" \")","v":" "}]
[" ",{"$f":"IFERROR(VLOOKUP(G28,наук!$C$14:$D$102,2,FALSE),\" \")","v":" "}]
[" ",{"$f":"IFERROR(VLOOKUP(G29,наук!$C$14:$D$102,2,FALSE),\" \")","v":" "}]
[null,null,null,"Загальна кількість годин",{"$f":"SUM(E22:E29)","v":0},{"$f":"SUM(F22:F29)","v":0}]
[null,{"$f":"B19","v":"Викладач ______________      Завідувач кафедри  ____________       / Близнюк Т. П. /"}]
[null,"ІV. ОРГАНІЗАЦІЙНА РОБОТА"]
["№   п/п","Зміст","Підсумковий результат ","Термін виконання","Плановий обсяг,                                год","Фактичний обсяг,                    год","ВВЕДІТЬ НОМЕР ВІД 301-347"]
[{"$f":"IF(B34=0,0,1)","v":1},{"$f":"IFERROR(VLOOKUP(G34,органз!$C$14:$D$120,2,FALSE),\" \")","v":" "}]
[{"$f":"IF(B35=\" \",\" \",A34+1)","v":" "},{"$f":"IFERROR(VLOOKUP(G35,органз!$C$14:$D$120,2,FALSE),\" \")","v":" "}]
[{"$f":"IF(B36=\" \",\" \",A35+1)","v":" "},{"$f":"IFERROR(VLOOKUP(G36,органз!$C$14:$D$120,2,FALSE),\" \")","v":" "}]
[" ",{"$f":"IFERROR(VLOOKUP(G37,органз!$C$14:$D$120,2,FALSE),\" \")","v":" "}]
[" ",{"$f":"IFERROR(VLOOKUP(G38,органз!$C$14:$D$120,2,FALSE),\" \")","v":" "}]
[null,null,null,"Загальна кількість годин",{"$f":"SUM(E34:E38)","v":0},{"$f":"SUM(F34:F38)","v":0}]
[null,{"$f":"B19","v":"Викладач ______________      Завідувач кафедри  ____________       / Близнюк Т. П. /"}]

{"sheet":"ЗМІНИ ТА ВИСНОВКИ","index":4,"n_rows":21,"n_cols":7,"rows_kept":21,"cut":false,"hidden":false,"merged":[[23,1,23,5],[24,1,24,5],[25,1,25,5],[26,1,26,5],[27,1,27,5],[22,1,22,5],[19,0,19,6],[0,0,0,5],[11,1,11,5],[12,1,12,5],[13,1,13,5],[14,1,14,5],[10,0,10,6],[15,1,15,5],[16,1,16,5],[17,1,17,5],[20,1,20,5],[21,1,21,5]]}
["V. ПЕРЕЛІК ЗМІН У ПЛАНІ РОБОТИ ВИКЛАДАЧА"]
["Семестр","Види навальної роботи ","Сутність запроваджених змін та їх обґрунтування","Плановий обсяг,                                год","Фактичний обсяг,                    год","Підстава                                                  (накази, розпорядження, протоколи засідань кафедри, лікарняні листи)","Підпис  завідувача кафедри"]
[]
[]
[]
[]
[]
[]
[]
[]
["VI.  ВИСНОВОК ПРО ВИКОНАННЯ ПЛАНУ"]
["Семестр","Зміст",null,null,null,null,"Підпис  завідувача кафедри"]
[null,{"$f":"CONCATENATE(\"Звіт про виконання індивідуального плану за \",ТИТУЛ!A34,\" навчальний рік викладача \",ТИТУЛ!A24,\" розглянуто ___  _____________ 20__ р. на засіданні кафедри \",ТИТУЛ!B12,\" й ухвалено рішення (протокол №______): Індивідуальний план виконано в обсязі \",РОЗПОДІЛ!E19,\" годин.\")","v":"Звіт про виконання індивідуального плану за 2025/2026 навчальний рік викладача  розглянуто ___  _____________ 20__ р. на засіданні кафедри Креативного менеджменту і дизайну й ухвалено рішення (протокол №______): Індивідуальний план виконано в обсязі 0 годин."}]
[null,"Пояснення щодо причин недовиконання:"]
[]
[]
[]
[]
[]
["VII. ЗАУВАЖЕННЯ ОСІБ, ЯКІ ПЕРЕВІРЯЮТЬ РОБОТУ КАФЕДРИ "]
["Дата","Сутність зауважень",null,null,null,null,"Підпис"]

{"sheet":"метод","index":5,"n_rows":126,"n_cols":5,"rows_kept":126,"cut":false,"hidden":false,"merged":[]}
[]
["ПП","ПЕРЕЛІК МЕТОДИЧНИХ РОБІТ","номер"]
[]
[]
[]
[]
[]
[]
[]
[]
[]
[]
["ПП","ПЕРЕЛІК МЕТОДИЧНИХ РОБІТ","номер"]
["1.1.1","Розроблення освітньо-професійної та/ або освітньо-наукової програм підготовки фахівців",1,{"$f":"CONCATENATE(A14,\" \", B14)","v":"1.1.1 Розроблення освітньо-професійної та/ або освітньо-наукової програм підготовки фахівців"},"до 50 годин на \nпрограму "]
["1.1.2","Оновлення освітньо-професійної та/ або освітньо-наукової програм підготовки фахівців ",2,{"$f":"CONCATENATE(A15,\" \", B15)","v":"1.1.2 Оновлення освітньо-професійної та/ або освітньо-наукової програм підготовки фахівців "},"до 25 годин на програму"]
["1.2","Розроблення концепції освітньої діяльності за спеціальністю на певному рівні",3,"1.2 Розроблення концепції освітньої діяльності за спеціальністю на певному рівні","до 50 годин на концепцію"]
["1.3","Підготовка ліцензійних справ",4,"1.3 Підготовка ліцензійних справ","до 70 годин на справу"]
["1.4","Підготовка акредитаційних справ",5,"1.4 Підготовка акредитаційних справ","до 150 годин на справу"]
["1.5.1","Підготовка навчальних планів відповідної освітньо-професійної та освітньо-наукової програми",6,"1.5.1 Підготовка навчальних планів відповідної освітньо-професійної та освітньо-наукової програми","10 годин на навчальний план"]
["1.5.2","Підготовка робочих навчальних планів відповідної освітньо-професійної та освітньо-наукової програми",7,"1.5.2 Підготовка робочих навчальних планів відповідної освітньо-професійної та освітньо-наукової програми","1 година на робочий навчальний план"]
["2.1.1","Розроблення  робочих програм навчальних дисциплін (РПНД)",8,"2.1.1 Розроблення  робочих програм навчальних дисциплін (РПНД)","до 40 годин на дисципліну"]
["2.1.2","Оновлення робочих програм навчальних дисциплін (РПНД)",9,"2.1.2 Оновлення робочих програм навчальних дисциплін (РПНД)","до 10 годин на дисципліну"]
["2.2.1","Розроблення  робочих програм навчальних дисциплін (РПНД): іноземною мовою",10,"2.2.1 Розроблення  робочих програм навчальних дисциплін (РПНД): іноземною мовою","коефіцієнт 1,5 *40 годин (від відповідної норми)"]
["2.2.2","Оновлення робочих програм навчальних дисциплін (РПНД): іноземною мовою",11,"2.2.2 Оновлення робочих програм навчальних дисциплін (РПНД): іноземною мовою","коефіцієнт 1,5 * 10 годин (від відповідної норми)"]
["2.3.1","Розроблення силабусу навчальної дисципліни",12,"2.3.1 Розроблення силабусу навчальної дисципліни","до 10 годин незалежно від кількості розробників"]
["2.3.2","Оновлення силабусу навчальної дисципліни",13,"2.3.2 Оновлення силабусу навчальної дисципліни","до 2 годин незалежно від кількості розробників"]
["2.4.1","Розроблення силабусу навчальної дисципліни: іноземною мовою",14,"2.4.1 Розроблення силабусу навчальної дисципліни: іноземною мовою","коефіцієнт 1,5 *10 годин (від відповідної норми)"]
["2.4.2","Оновлення силабусу навчальної дисципліни: іноземною мовою",15,"2.4.2 Оновлення силабусу навчальної дисципліни: іноземною мовою","коефіцієнт 1,5 *2 години (від відповідної норми)"]
["2.5.1","Розроблення робочого плану (технологічної  карти) навчальної дисципліни",16,"2.5.1 Розроблення робочого плану (технологічної  карти) навчальної дисципліни","4 години незалежно від кількості розробників"]
["2.5.2","Оновлення робочого плану (технологічної  карти) навчальної дисципліни",17,"2.5.2 Оновлення робочого плану (технологічної  карти) навчальної дисципліни","2 години незалежно від кількості розробників"]
["2.6.1","Розроблення робочого плану (технологічної  карти) навчальної дисципліни: іноземною мовою",18,"2.6.1 Розроблення робочого плану (технологічної  карти) навчальної дисципліни: іноземною мовою","коефіцієнт 1,5 * 4 години (від відповідної норми)"]
["2.6.2","Оновлення робочого плану (технологічної  карти) навчальної дисципліни: іноземною мовою",19,"2.6.2 Оновлення робочого плану (технологічної  карти) навчальної дисципліни: іноземною мовою","коефіцієнт 1,5 *2 години (від відповідної норми)"]
["3.1.1","Розроблення конспектів лекцій та/або засобів активізації навчально-пізнавальної діяльності (технічної візуалізації)",20,"3.1.1 Розроблення конспектів лекцій та/або засобів активізації навчально-пізнавальної діяльності (технічної візуалізації)","4 години на 1 годину занять"]
["3.1.2","Оновлення конспектів лекцій та/або засобів активізації навчально-пізнавальної діяльності (технічної візуалізації)",21,"3.1.2 Оновлення конспектів лекцій та/або засобів активізації навчально-пізнавальної діяльності (технічної візуалізації)","2 година на 1 годину занять"]
["3.2.1","Розроблення конспектів лекцій та/або засобів активізації навчально-пізнавальної діяльності (технічної візуалізації): іноземною мовою",22,"3.2.1 Розроблення конспектів лекцій та/або засобів активізації навчально-пізнавальної діяльності (технічної візуалізації): іноземною мовою","коефіцієнт 1,5 * 4  * кількість годин занять (від відповідної норми)"]
["3.2.2","Оновлення конспектів лекцій та/або засобів активізації навчально-пізнавальної діяльності (технічної візуалізації): іноземною мовою",23,"3.2.2 Оновлення конспектів лекцій та/або засобів активізації навчально-пізнавальної діяльності (технічної візуалізації): іноземною мовою","коефіцієнт 1,5 * 2 * кількість годин занять (від відповідної норми)"]
["3.3.1","Розроблення методичних матеріалів семінарських, практичних, лабораторних занять",24,"3.3.1 Розроблення методичних матеріалів семінарських, практичних, лабораторних занять","2 години на 1 годину занять"]
["3.3.2","Оновлення методичних матеріалів семінарських, практичних, лабораторних занять",25,"3.3.2 Оновлення методичних матеріалів семінарських, практичних, лабораторних занять","1 година на 1 годину занять"]
["3.4.1","Розроблення методичних матеріалів семінарських, практичних, лабораторних занять: іноземною мовою",26,"3.4.1 Розроблення методичних матеріалів семінарських, практичних, лабораторних занять: іноземною мовою","коефіцієнт 1,5 від відповідної норми"]
["3.4.2","Оновлення методичних матеріалів семінарських, практичних, лабораторних занять: іноземною мовою",27,"3.4.2 Оновлення методичних матеріалів семінарських, практичних, лабораторних занять: іноземною мовою","коефіцієнт 1,5 від відповідної норми"]
["3.5.1","Розроблення матеріалів до самостійної роботи (СР)",28,"3.5.1 Розроблення матеріалів до самостійної роботи (СР)","до 50 годин на дисципліну"]
["3.5.2","Оновлення матеріалів до самостійної роботи (СР)",29,"3.5.2 Оновлення матеріалів до самостійної роботи (СР)","до 25 годин на дисципліну"]
["3.6.1","Розроблення матеріалів до самостійної роботи (СР): іноземною мовою",30,"3.6.1 Розроблення матеріалів до самостійної роботи (СР): іноземною мовою","коефіцієнт 1,5 від відповідної норми"]
["3.6.2","Оновлення матеріалів до самостійної роботи (СР): іноземною мовою",31,"3.6.2 Оновлення матеріалів до самостійної роботи (СР): іноземною мовою","коефіцієнт 1,5 від відповідної норми"]
["3.7.1","Розроблення авторських ігрових форм навчання (тренінгів, ділових, рольових, імітаційних ігор, проблемних завдань та ситуацій та ін.)",32,"3.7.1 Розроблення авторських ігрових форм навчання (тренінгів, ділових, рольових, імітаційних ігор, проблемних завдань та ситуацій та ін.)","до 3 годин на 1 годину гри, тренінгів тощо"]
["3.7.2","Оновлення авторських ігрових форм навчання (тренінгів, ділових, рольових, імітаційних ігор, проблемних завдань та ситуацій та ін.)",33,"3.7.2 Оновлення авторських ігрових форм навчання (тренінгів, ділових, рольових, імітаційних ігор, проблемних завдань та ситуацій та ін.)","коефіцієнт 0,5 від відповідної норми"]
["3.8","Розроблення нової сертифікованої ПНС, що досягла контентного рівня",34,"3.8 Розроблення нової сертифікованої ПНС, що досягла контентного рівня","до 10 годин на один кредит ЄКТС за навчальною дисципліною"]
["3.9","Оновлення сертифікованої ПНС, що досягла контентного рівня",35,"3.9 Оновлення сертифікованої ПНС, що досягла контентного рівня","до 5 годин на один кредит ЄКТС за навчальною дисципліною"]
["3.10","Розроблення та оновлення елементів інтерактивного рівня сертифікованої ПНС, що досягла контентного рівня",36,"3.10 Розроблення та оновлення елементів інтерактивного рівня сертифікованої ПНС, що досягла контентного рівня","за формулою щодо обліку трудовитрат на розроблення елементів ПНС інтерактивного рівня (п. 4.7 Положення про персональні навчальні системи в ХНЕУ ім. С. Кузнеця)"]
["3.11","Розроблення сертифікованої ПНС, що досягла автономного рівня",37,"3.11 Розроблення сертифікованої ПНС, що досягла автономного рівня","до 100 годин на один кредит ЄКТС за навчальною дисципліною"]
["3.12","Оновлення сертифікованої ПНС, що досягла автономного рівня",38,"3.12 Оновлення сертифікованої ПНС, що досягла автономного рівня","до 50 годин на один кредит ЄКТС за навчальною дисципліною"]
["3.13","Створення / адаптація віртуальних середовищ (господарських організацій, фінансових установ, їхніх функціональних підрозділів)",39,"3.13 Створення / адаптація віртуальних середовищ (господарських організацій, фінансових установ, їхніх функціональних підрозділів)","до 200 годин на проєкт"]
["3.14","Проведення комп'ютерних бізнес-симуляцій",40,"3.14 Проведення комп'ютерних бізнес-симуляцій","1 година на 1 годину заходу"]
["4.1","Підготовка методичних рекомендацій до практичних, лабораторних занять; практикуму, лабораторного практикуму; до самостійної роботи; тренінгів; програми практики; до курсових (консультаційних) робіт (проєктів), до дипломних робіт (проєктів), кваліфікаційних іспитів за спеціальністю; збірника (задач, завдань, вправ, тестів); курсу лекцій / конспекту лекцій",41,"4.1 Підготовка методичних рекомендацій до практичних, лабораторних занять; практикуму, лабораторного практикуму; до самостійної роботи; тренінгів; програми практики; до курсових (консультаційних) робіт (проєктів), до дипломних робіт (проєктів), кваліфікаційних іспитів за спеціальністю; збірника (задач, завдань, вправ, тестів); курсу лекцій / конспекту лекцій","до 50 годин на 1 ум. друк. арк."]
["4.2","Підготовка словника, хрестоматії, довідника тощо ",42,"4.2 Підготовка словника, хрестоматії, довідника тощо ","до 20 годин на 1 ум. друк. арк."]
["4.3","Підготовка навчального посібника ",43,"4.3 Підготовка навчального посібника ","до 70 годин на 1 ум. друк. арк."]
["4.4","Підготовка підручника",44,"4.4 Підготовка підручника","до 100 годин на 1 ум. друк. арк."]
["4.5.1","Підготовка методичних рекомендацій до практичних, лабораторних занять; практикуму, лабораторного практикуму; до самостійної роботи; тренінгів; програми практики; до курсових (консультаційних) робіт (проєктів), до дипломних робіт (проєктів), кваліфікаційних іспитів за спеціальністю; збірника (задач, завдань, вправ, тестів); курсу лекцій / конспекту лекцій іноземною мовою",45,"4.5.1 Підготовка методичних рекомендацій до практичних, лабораторних занять; практикуму, лабораторного практикуму; до самостійної роботи; тренінгів; програми практики; до курсових (консультаційних) робіт (проєктів), до дипломних робіт (проєктів), кваліфікаційних іспитів за спеціальністю; збірника (задач, завдань, вправ, тестів); курсу лекцій / конспекту лекцій іноземною мовою","коефіцієнт 1,5 від відповідної норми"]
["4.5.2","Підготовка словника, хрестоматії, довідника тощо іноземною мовою",46,"4.5.2 Підготовка словника, хрестоматії, довідника тощо іноземною мовою","коефіцієнт 1,5 від відповідної норми"]
["4.5.3","Підготовка навчального посібника іноземною мовою",47,"4.5.3 Підготовка навчального посібника іноземною мовою","коефіцієнт 1,5 від відповідної норми"]
["4.5.4","Підготовка підручника іноземною мовою ",48,"4.5.4 Підготовка підручника іноземною мовою ","коефіцієнт 1,5 від відповідної норми"]
["4.6.1","Підготовка методичних рекомендацій до практичних, лабораторних занять; практикуму, лабораторного практикуму; до самостійної роботи; тренінгів; програми практики; до курсових (консультаційних) робіт (проєктів), до дипломних робіт (проєктів), кваліфікаційних іспитів за спеціальністю; збірника (задач, завдань, вправ, тестів); курсу лекцій / конспекту лекцій :  перевидання",49,"4.6.1 Підготовка методичних рекомендацій до практичних, лабораторних занять; практикуму, лабораторного практикуму; до самостійної роботи; тренінгів; програми практики; до курсових (консультаційних) робіт (проєктів), до дипломних робіт (проєктів), кваліфікаційних іспитів за спеціальністю; збірника (задач, завдань, вправ, тестів); курсу лекцій / конспекту лекцій :  перевидання","коефіцієнт 0,5 від відповідної норми"]
["4.6.2","Підготовка словника, хрестоматії, довідника тощо : перевидання",50,"4.6.2 Підготовка словника, хрестоматії, довідника тощо : перевидання","коефіцієнт 0,5 від відповідної норми"]
["4.6.3","Підготовка навчального посібника іноземною мовою : перевидання",51,"4.6.3 Підготовка навчального посібника іноземною мовою : перевидання","коефіцієнт 0,5 від відповідної норми"]
["4.6.4","Підготовка підручника : перевидання",52,"4.6.4 Підготовка підручника : перевидання","коефіцієнт 0,5 від відповідної норми"]
["4.7","Розроблення початкового формату електронного мультимедійного інтерактивного видання (матеріал у початковому форматі містить текст, рисунки та послідовну чи нумеровану можливість переходу зі сторінки на сторінку або від слайда до слайда. Він має електронний носій інформації, але за формою та своїм складом не відрізняється від аналогічних друкованих видань)",53,"4.7 Розроблення початкового формату електронного мультимедійного інтерактивного видання (матеріал у початковому форматі містить текст, рисунки та послідовну чи нумеровану можливість переходу зі сторінки на сторінку або від слайда до слайда. Він має електронний носій інформації, але за формою та своїм складом не відрізняється від аналогічних друкованих видань)","за нормами підрозділу \"Підготовка до видання навчальнометодичної літератури\""]
["4.8","Початковий формат електронного мультимедійного інтерактивного видання в разі наявності опублікованого видання та 50 % не оновленого змісту",54,"4.8 Початковий формат електронного мультимедійного інтерактивного видання в разі наявності опублікованого видання та 50 % не оновленого змісту","коефіцієнт 0,5 від відповідної норми підрозділу \"Підготовка до видання навчальнометодичної літератури\""]
["4.9","Створення електронного мультимедійного інтерактивного видання (на базі початкового формату) з елементами початкової інтерактивності: контентозалежна навігація (перехід з однієї частини тексту чи об'єкта видання до іншої за гіперпосиланнями), додавання відео чи анімації, перехід між окремими частинами навчального матеріалу, візуалізація прихованих рисунків та прихованого тексту, управління спливаючими підказками, виклик помічника, указки тощо",55,"4.9 Створення електронного мультимедійного інтерактивного видання (на базі початкового формату) з елементами початкової інтерактивності: контентозалежна навігація (перехід з однієї частини тексту чи об'єкта видання до іншої за гіперпосиланнями), додавання відео чи анімації, перехід між окремими частинами навчального матеріалу, візуалізація прихованих рисунків та прихованого тексту, управління спливаючими підказками, виклик помічника, указки тощо","коефіцієнт 0,5 від годин, які нараховані для початкового формату (без адаптивної частини та сценаріїв)"]
["4.10.1","Створення додаткових елементів мультимедійності: створення фрагментів відеолекцій та відеоуроків  ",56,"4.10.1 Створення додаткових елементів мультимедійності: створення фрагментів відеолекцій та відеоуроків  ","створення фрагментів відеолекцій та відеоуроків (5 – 10 хвилин): до 15 годин на 1 фрагмент"]
["4.10.2","Створення додаткових елементів мультимедійності: створення анімаційних роликів",57,"4.10.2 Створення додаткових елементів мультимедійності: створення анімаційних роликів","створення анімаційних роликів: до 20 годин на 1 ролик"]
["4.11"," Створення адаптивності електронного мультимедійного інтерактивного видання, тобто можливості адаптації під різні характеристики особливого сприйняття інформації шляхом викладення одного й того ж матеріалу за різними методиками з відповідною адаптивністю навігації за матеріалом, а саме: створення скороченого аудіо-візуально-образного варіанта видання, синхронізація звукового супроводу графічного матеріалу, можливість обрання мови навчального матеріалу тощо",58,"4.11  Створення адаптивності електронного мультимедійного інтерактивного видання, тобто можливості адаптації під різні характеристики особливого сприйняття інформації шляхом викладення одного й того ж матеріалу за різними методиками з відповідною адаптивністю навігації за матеріалом, а саме: створення скороченого аудіо-візуально-образного варіанта видання, синхронізація звукового супроводу графічного матеріалу, можливість обрання мови навчального матеріалу тощо","коефіцієнт 1,75 від годин, які нараховані в початковому форматі для додаткової адаптивної частини Примітка: для розрахунку потрібних годин спочатку необхідно створити початковий формат адаптивної частини"]
["4.12","Створення навчальних елементів середньої інтерактивності електронного мультимедійного інтерактивного видання, які створюють умовні переходи за результатами розумової діяльності студента (інтерактивних тестових завдань, інтерактивних вправ, ситуаційних задач, симуляцій комп'ютерних програм тощо на базі сценаріїв)",59,"4.12 Створення навчальних елементів середньої інтерактивності електронного мультимедійного інтерактивного видання, які створюють умовні переходи за результатами розумової діяльності студента (інтерактивних тестових завдань, інтерактивних вправ, ситуаційних задач, симуляцій комп'ютерних програм тощо на базі сценаріїв)","коефіцієнт 2,25 від годин, які нараховані в початковому форматі для кожного сценарію Примітка: для розрахунку потрібних годин спочатку необхідно створити початковий формат кожного елементу"]
["4.13","Створення навчальних елементів високої інтерактивності електронного мультимедійного інтерактивного видання (модулів для моделювання читачами об'єктів і процесів із мультимедійним зворотним зв'язком на базі сценаріїв) ",60,"4.13 Створення навчальних елементів високої інтерактивності електронного мультимедійного інтерактивного видання (модулів для моделювання читачами об'єктів і процесів із мультимедійним зворотним зв'язком на базі сценаріїв) ","коефіцієнт 4 від годин, які нараховані у початковому форматі для кожного сценарію Примітка: для розрахунку потрібних годин спочатку необхідно створити початковий формат кожного сценарію"]
["5.1.1","Розроблення засобів діагностики поточного та підсумкового контролю: розроблення завдань для проведення поточного контролю",61,"5.1.1 Розроблення засобів діагностики поточного та підсумкового контролю: розроблення завдань для проведення поточного контролю","до 40 годин на дисципліну"]
["5.1.2","Розроблення засобів діагностики поточного та підсумкового контролю: складання екзаменаційних білетів",62,"5.1.2 Розроблення засобів діагностики поточного та підсумкового контролю: складання екзаменаційних білетів","до 40 годин на дисципліну"]
["5.1.3","Розроблення засобів діагностики поточного та підсумкового контролю: складання екзаменаційних білетів до вступних екзаменів (іспитів) (письмових та усних)",63,"5.1.3 Розроблення засобів діагностики поточного та підсумкового контролю: складання екзаменаційних білетів до вступних екзаменів (іспитів) (письмових та усних)","до 40 годин на дисципліну"]
["5.1.4","Розроблення засобів діагностики поточного та підсумкового контролю: складання завдань до кваліфікаційного іспиту за спеціальністю",64,"5.1.4 Розроблення засобів діагностики поточного та підсумкового контролю: складання завдань до кваліфікаційного іспиту за спеціальністю","до 40 годин на дисципліну"]
["5.1.5","Розроблення засобів діагностики поточного та підсумкового контролю: складання завдань для проведення студентської або учнівської олімпіади (за наявності наказу)",65,"5.1.5 Розроблення засобів діагностики поточного та підсумкового контролю: складання завдань для проведення студентської або учнівської олімпіади (за наявності наказу)","до 50 годин на олімпіаду"]
["5.1.6","Розроблення засобів діагностики поточного та підсумкового контролю: розроблення комплексних контрольних робіт для перевірки залишкових знань (за наявності наказу)",66,{"$f":"CONCATENATE(A79,\" \", B79)","v":"5.1.6 Розроблення засобів діагностики поточного та підсумкового контролю: розроблення комплексних контрольних робіт для перевірки залишкових знань (за наявності наказу)"},"до 30 годин на дисципліну"]
["5.2.1","Оновлення засобів діагностики поточного та підсумкового контролю: розроблення завдань для проведення поточного контролю",67,"5.2.1 Оновлення засобів діагностики поточного та підсумкового контролю: розроблення завдань для проведення поточного контролю","коефіцієнт 0,5 від відповідної норми п. 5.1"]
["5.2.2","Оновлення засобів діагностики поточного та підсумкового контролю: складання екзаменаційних білетів",68,"5.2.2 Оновлення засобів діагностики поточного та підсумкового контролю: складання екзаменаційних білетів","коефіцієнт 0,5 від відповідної норми п. 5.1"]
["5.2.3","Оновлення засобів діагностики поточного та підсумкового контролю: складання екзаменаційних білетів до вступних екзаменів (іспитів) (письмових та усних)",69,"5.2.3 Оновлення засобів діагностики поточного та підсумкового контролю: складання екзаменаційних білетів до вступних екзаменів (іспитів) (письмових та усних)","коефіцієнт 0,5 від відповідної норми п. 5.1"]
["5.2.4","Оновлення засобів діагностики поточного та підсумкового контролю: складання завдань до кваліфікаційного іспиту за спеціальністю",70,"5.2.4 Оновлення засобів діагностики поточного та підсумкового контролю: складання завдань до кваліфікаційного іспиту за спеціальністю","коефіцієнт 0,5 від відповідної норми п. 5.1"]
["5.2.5","Оновлення засобів діагностики поточного та підсумкового контролю: складання завдань для проведення студентської або учнівської олімпіади (за наявності наказу)",71,"5.2.5 Оновлення засобів діагностики поточного та підсумкового контролю: складання завдань для проведення студентської або учнівської олімпіади (за наявності наказу)","коефіцієнт 0,5 від відповідної норми п. 5.1"]
["5.2.6","Оновлення засобів діагностики поточного та підсумкового контролю: розроблення комплексних контрольних робіт для перевірки залишкових знань (за наявності наказу)",72,"5.2.6 Оновлення засобів діагностики поточного та підсумкового контролю: розроблення комплексних контрольних робіт для перевірки залишкових знань (за наявності наказу)","коефіцієнт 0,5 від відповідної норми п. 5.1"]
["5.3.1","Розроблення засобів діагностики поточного та підсумкового контролю: розроблення завдань для проведення поточного контролю іноземною мовою",73,"5.3.1 Розроблення засобів діагностики поточного та підсумкового контролю: розроблення завдань для проведення поточного контролю іноземною мовою","коефіцієнт 1,5 від відповідної норми за п.5.1 та 5.2"]
["5.3.2","Розроблення засобів діагностики поточного та підсумкового контролю: складання екзаменаційних білетів іноземною мовою",74,"5.3.2 Розроблення засобів діагностики поточного та підсумкового контролю: складання екзаменаційних білетів іноземною мовою","коефіцієнт 1,5 від відповідної норми за п.5.1 та 5.2"]
["5.3.3","Розроблення засобів діагностики поточного та підсумкового контролю: складання екзаменаційних білетів до вступних екзаменів (іспитів) (письмових та усних) іноземною мовою",75,"5.3.3 Розроблення засобів діагностики поточного та підсумкового контролю: складання екзаменаційних білетів до вступних екзаменів (іспитів) (письмових та усних) іноземною мовою","коефіцієнт 1,5 від відповідної норми за п.5.1 та 5.2"]
["5.3.4","Розроблення засобів діагностики поточного та підсумкового контролю: складання завдань до кваліфікаційного іспиту за спеціальністю іноземною мовою",76,"5.3.4 Розроблення засобів діагностики поточного та підсумкового контролю: складання завдань до кваліфікаційного іспиту за спеціальністю іноземною мовою","коефіцієнт 1,5 від відповідної норми за п.5.1 та 5.2"]
["5.3.5","Розроблення засобів діагностики поточного та підсумкового контролю: складання завдань для проведення студентської або учнівської олімпіади (за наявності наказу) іноземною мовою",77,"5.3.5 Розроблення засобів діагностики поточного та підсумкового контролю: складання завдань для проведення студентської або учнівської олімпіади (за наявності наказу) іноземною мовою","коефіцієнт 1,5 від відповідної норми за п.5.1 та 5.2"]
["5.3.6","Розроблення засобів діагностики поточного та підсумкового контролю: розроблення комплексних контрольних робіт для перевірки залишкових знань (за наявності наказу іноземною мовою",78,"5.3.6 Розроблення засобів діагностики поточного та підсумкового контролю: розроблення комплексних контрольних робіт для перевірки залишкових знань (за наявності наказу іноземною мовою","коефіцієнт 1,5 від відповідної норми за п.5.1 та 5.2"]
["5.3.7","Оновлення засобів діагностики поточного та підсумкового контролю: розроблення завдань для проведення поточного контролю іноземною мовою",79,"5.3.7 Оновлення засобів діагностики поточного та підсумкового контролю: розроблення завдань для проведення поточного контролю іноземною мовою","коефіцієнт 1,5 від відповідної норми за п.5.1 та 5.2"]
["5.3.8","Оновлення засобів діагностики поточного та підсумкового контролю: складання екзаменаційних білетів іноземною мовою іноземною мовою",80,"5.3.8 Оновлення засобів діагностики поточного та підсумкового контролю: складання екзаменаційних білетів іноземною мовою іноземною мовою","коефіцієнт 1,5 від відповідної норми за п.5.1 та 5.2"]
["5.3.9","Оновлення засобів діагностики поточного та підсумкового контролю: складання екзаменаційних білетів до вступних екзаменів (іспитів) (письмових та усних) іноземною мовою",81,"5.3.9 Оновлення засобів діагностики поточного та підсумкового контролю: складання екзаменаційних білетів до вступних екзаменів (іспитів) (письмових та усних) іноземною мовою","коефіцієнт 1,5 від відповідної норми за п.5.1 та 5.2"]
["5.3.10","Оновлення засобів діагностики поточного та підсумкового контролю: складання завдань до кваліфікаційного іспиту за спеціальністю іноземною мовою",82,"5.3.10 Оновлення засобів діагностики поточного та підсумкового контролю: складання завдань до кваліфікаційного іспиту за спеціальністю іноземною мовою","коефіцієнт 1,5 від відповідної норми за п.5.1 та 5.2"]
["5.3.11","Оновлення засобів діагностики поточного та підсумкового контролю: складання завдань для проведення студентської або учнівської олімпіади (за наявності наказу) іноземною мовою",83,"5.3.11 Оновлення засобів діагностики поточного та підсумкового контролю: складання завдань для проведення студентської або учнівської олімпіади (за наявності наказу) іноземною мовою","коефіцієнт 1,5 від відповідної норми за п.5.1 та 5.2"]
["5.3.12","Оновлення засобів діагностики поточного та підсумкового контролю: розроблення комплексних контрольних робіт для перевірки залишкових знань (за наявності наказу іноземною мовою",84,"5.3.12 Оновлення засобів діагностики поточного та підсумкового контролю: розроблення комплексних контрольних робіт для перевірки залишкових знань (за наявності наказу іноземною мовою","коефіцієнт 1,5 від відповідної норми за п.5.1 та 5.2"]
["5.4","Перевірка  контрольних (модульних) робіт, передбачених навчальним планом",85,"5.4 Перевірка  контрольних (модульних) робіт, передбачених навчальним планом","до 0,33 години на одну роботу"]
["5.5","Перевірка семестрових екзаменів (іспитів)",86,"5.5 Перевірка семестрових екзаменів (іспитів)","до 0,33 години на одного здобувача вищої освіти"]
["6.1","Робота у вченій раді університету",87,"6.1 Робота у вченій раді університету","до 10 годин на навчальний рік"]
["6.2","Робота у КТК університету",88,"6.2 Робота у КТК університету","до 10 годин на навчальний рік"]
["6.3","Робота в науково-методичних радах і комісіях інституту / факультету",89,"6.3 Робота в науково-методичних радах і комісіях інституту / факультету","до 10 годин на навчальний рік"]
["6.4","Робота в експертних комісіях з поновлення, переведення здобувачів вищої освіти, в разових  предметних комісіях з визнання неформальної та/або інформальної освіти",90,"6.4 Робота в експертних комісіях з поновлення, переведення здобувачів вищої освіти, в разових  предметних комісіях з визнання неформальної та/або інформальної освіти","2 години на 1 засідання"]
["6.5","Виконання обов'язків секретаря екзаменаційної комісії",91,"6.5 Виконання обов'язків секретаря екзаменаційної комісії","0,5 годин на 1 здобувача вищої освіти (захист дипломної роботи / проєкту) / 0,1 година на 1 комісії\nздобувача вищої освіти (кваліфікаційний іспит за спеціальністю)"]
["6.6","Робота у вченій раді інституту / факультету",92,"6.6 Робота у вченій раді інституту / факультету","до 10 годин на навчальний рік"]
["6.7","Виконання обов'язків секретаря вченої ради інституту / факультету",93,"6.7 Виконання обов'язків секретаря вченої ради інституту / факультету","до 40 годин на навчальний рік"]
["6.8","Організація та проведення методичних заходів кафедри",94,"6.8 Організація та проведення методичних заходів кафедри","до 5 годин на захід"]
["6.9","Організація та проведення методичних міжкафедральних семінарів",95,"6.9 Організація та проведення методичних міжкафедральних семінарів","до 5 годин на захід"]
["6.10","Організація та проведення методичних загальноуніверситетських семінарів (тренінгів, круглих столів)",96,"6.10 Організація та проведення методичних загальноуніверситетських семінарів (тренінгів, круглих столів)","до 5 годин на захід"]
["6.11","Робота за дорученням адміністрації ",97,"6.11 Робота за дорученням адміністрації ","кількість годин відповідно до наказу (розпорядження) ректора"]
["6.12","Перевірка виконання студентами ректорської контрольної роботи,  (зрізи залишкових знань)",98,"6.12 Перевірка виконання студентами ректорської контрольної роботи,  (зрізи залишкових знань)","до 20 годин на дисципліну"]
["6.13","Взаємовідвідування занять",99,"6.13 Взаємовідвідування занять","до 10 годин на навчальний рік"]
["6.14","Проведення консультацій із навчальних дисциплін протягом семестру",100,"6.14 Проведення консультацій із навчальних дисциплін протягом семестру","Від загального обсягу навчального часу, відведеного на вивчення навчальної дисципліни на академічну групу: до 2 % для денної форми навчання; 2 години на академічну групу для заочної форми навчання"]
["6.15.1","Консультування та рецензування дипломних проєктів (робіт): перший (бакалаврський) рівень",101,"6.15.1 Консультування та рецензування дипломних проєктів (робіт): перший (бакалаврський) рівень","до 15 годин"]
["6.15.2","Консультування та рецензування дипломних проєктів (робіт): другий (магістерський) рівень",102,"6.15.2 Консультування та рецензування дипломних проєктів (робіт): другий (магістерський) рівень","до 23 годин"]
["6.16.1","Консультування та рецензування дипломних проєктів (робіт): перший (бакалаврський) рівень іноземною мовою",103,"6.16.1 Консультування та рецензування дипломних проєктів (робіт): перший (бакалаврський) рівень іноземною мовою","коефіцієнт 1,5 від відповідної норми п. 6.15"]
["6.16.2","Консультування та рецензування дипломних проєктів (робіт): другий (магістерський) рівень іноземною мовою",104,"6.16.2 Консультування та рецензування дипломних проєктів (робіт): другий (магістерський) рівень іноземною мовою","коефіцієнт 1,5 від відповідної норми п. 6.15"]
["6.17","Переклад методичної літератури та інших матеріалів за дорученням адміністрації університету",105,"6.17 Переклад методичної літератури та інших матеріалів за дорученням адміністрації університету","до 70 годин на 1 ум. друк. арк."]
["7.1","Робота в: експертній раді, групі МОН України; експертних радах міністерств та відомств; колегіях МОН України; науково-методичних комісіях; робочих групах міністерств; колегіях облдержадміністрації, міськадміністрації; комітетах різних рівнів.",106,"7.1 Робота в: експертній раді, групі МОН України; експертних радах міністерств та відомств; колегіях МОН України; науково-методичних комісіях; робочих групах міністерств; колегіях облдержадміністрації, міськадміністрації; комітетах різних рівнів.","50 годин на навчальний рік"]
[null,null,null," "]
[null,null,null," "]
[null,null,null," "]
[null,null,null," "]
[null,null,null," "]
[null,null,null," "]
[null,null,null," "]

{"sheet":"наук","index":6,"n_rows":93,"n_cols":5,"rows_kept":93,"cut":false,"hidden":false,"merged":[]}
[]
["ПП","ПЕРЕЛІК НАУКОВИХ РОБІТ","номер"]
[]
[]
[]
[]
[]
[]
[]
[]
[]
[]
["ПП","ПЕРЕЛІК НАУКОВИХ РОБІТ","номер"]
["1.1.1","Виконання затверджених планових наукових досліджень: керівнику",201,{"$f":"CONCATENATE(A14,\" \",B14)","v":"1.1.1 Виконання затверджених планових наукових досліджень: керівнику"},"керівнику: до 10 годин на на 1 ум. друк. арк."]
["1.1.2","Виконання затверджених планових наукових досліджень: виконавцю",202,{"$f":"CONCATENATE(A15,\" \",B15)","v":"1.1.2 Виконання затверджених планових наукових досліджень: виконавцю"},"виконавцю: до 50 годин на 1 ум. друк. арк. за навч рік"]
["1.2","Підготовка проєктних пропозицій на конкурс / грант, який проводять на вітчизняному або міжнародному рівні ",203,"1.2 Підготовка проєктних пропозицій на конкурс / грант, який проводять на вітчизняному або міжнародному рівні ","до 300 годин на робочу групу"]
["1.3.1","Винахідницька робота викладача: міжнародні патенти",204,"1.3.1 Винахідницька робота викладача: міжнародні патенти","міжнародні патенти: до 150 годин на 1 об'єкт"]
["1.3.2","Винахідницька робота викладача:  патенти",205,"1.3.2 Винахідницька робота викладача:  патенти","патенти: до 100 годин на 1 об'єкт"]
["1.3.3","Винахідницька робота викладача:  патенти на корисну модель",206,"1.3.3 Винахідницька робота викладача:  патенти на корисну модель","патенти на корисну модель: до 100 годин на 1 об'єкт"]
["1.3.4","Винахідницька робота викладача:  свідоцтва на твір",207,"1.3.4 Винахідницька робота викладача:  свідоцтва на твір","свідоцтва на твір: до 50 годин на 1 об'єкт"]
["1.4","Підготовка ескізних проєктів, експериментальних (дослідних) зразків або їх діючих моделей, конструкторської або технологічної документації на науково-технічну продукцію, дослідних зразків",209,"1.4 Підготовка ескізних проєктів, експериментальних (дослідних) зразків або їх діючих моделей, конструкторської або технологічної документації на науково-технічну продукцію, дослідних зразків","до 200 год. на об’єкт"]
["1.5.1","Підготовка монографії до публікації вітчизняних видавництвах: колективна монографія",210,"1.5.1 Підготовка монографії до публікації вітчизняних видавництвах: колективна монографія","колективна монографія: до 100 годин на 1 ум. друк. арк."]
["1.5.2","Підготовка монографії до публікації вітчизняних видавництвах: одноосібна монографія",211,"1.5.2 Підготовка монографії до публікації вітчизняних видавництвах: одноосібна монографія","одноосібна монографія: до 150 годин на 1 ум. друк. арк."]
["1.6.1","Підготовка монографії до публікації в закордонних видавництвах: колективна монографія",212,"1.6.1 Підготовка монографії до публікації в закордонних видавництвах: колективна монографія","колективна монографія: до 150 годин на 1 ум. друк. арк."]
["1.6.2","Підготовка монографії до публікації в закордонних видавництвах: одноосібна монографія",213,"1.6.2 Підготовка монографії до публікації в закордонних видавництвах: одноосібна монографія","одноосібна монографія: до 200 годин на 1 ум. друк. арк"]
["1.7","Підготовка монографії /розділу монографії до публікації в НМБД ",214,"1.7 Підготовка монографії /розділу монографії до публікації в НМБД ","у виданнях, що індексуються в міжнародних наукометричних базах Scopus, Web of Science: до 300 годин на 1 ум. друк. арк."]
["1.8.1","Підготовка наукових статей: у журналах, що індексуються в міжнародних наукометричних базах Scopus, Web of Science",215,"1.8.1 Підготовка наукових статей: у журналах, що індексуються в міжнародних наукометричних базах Scopus, Web of Science","до 300 годин на 1 ум. друк. арк."]
["1.8.2","Підготовка наукових статей: у наукових виданнях, що індексуються в інших провідних міжнародних наукометричних базах, визнаних МОН",216,"1.8.2 Підготовка наукових статей: у наукових виданнях, що індексуються в інших провідних міжнародних наукометричних базах, визнаних МОН",": до 200 годин на 1 ум. друк. арк"]
["1.8.3","Підготовка наукових статей: у закордонних журналах",217,"1.8.3 Підготовка наукових статей: у закордонних журналах","до 150 годин на 1 ум. друк. арк."]
["1.8.4","Підготовка наукових статей: у фахових вітчизняних виданнях",218,"1.8.4 Підготовка наукових статей: у фахових вітчизняних виданнях","до 100 годин на 1 ум. друк. арк"]
["1.8.5","Підготовка наукових статей: у вітчизняних виданнях (що не входять до наукометричних баз даних)",219,"1.8.5 Підготовка наукових статей: у вітчизняних виданнях (що не входять до наукометричних баз даних)","до 70 годин на 1 ум. друк. арк"]
["1.9.1","Підготовка тез доповідей: тези доповіді в виданнях, що індексуються в міжнародних науко метричних базах Scopus, Web of Science",220,"1.9.1 Підготовка тез доповідей: тези доповіді в виданнях, що індексуються в міжнародних науко метричних базах Scopus, Web of Science","до 300 годин на 1 ум. друк. арк."]
["1.9.2","Підготовка тез доповідей: тези доповіді в закордонних виданнях",221,"1.9.2 Підготовка тез доповідей: тези доповіді в закордонних виданнях","до 70 годин на 1 ум. друк. арк"]
["1.9.3","Підготовка тез доповідей: тези доповіді у вітчизняних виданнях",222,"1.9.3 Підготовка тез доповідей: тези доповіді у вітчизняних виданнях","до 50 годин на 1 ум. друк. арк."]
["1.10","Підготовка до виступу з доповіддю (очна участь, без публікації тез)",223,"1.10 Підготовка до виступу з доповіддю (очна участь, без публікації тез)","до 10 годин на 1 захід"]
["1.11","Публікація набору дослідницьких (наукових) даних, зокрема FAIR-даних",224,"1.11 Публікація набору дослідницьких (наукових) даних, зокрема FAIR-даних","до 300 годин на 1 публікацію"]
["1.12.1","Підготовка мистецька творів до виставки (твори живопису, декоративного мистецтва, архітектури, архітектурні проєкти, скульптурні, графічні, фотографічні твори, твори дизайну): Підготовка робіт до участі у міжнародній виставці ",225,"1.12.1 Підготовка мистецька творів до виставки (твори живопису, декоративного мистецтва, архітектури, архітектурні проєкти, скульптурні, графічні, фотографічні твори, твори дизайну): Підготовка робіт до участі у міжнародній виставці ","150 годин на 1 особу"]
["1.12.2","Підготовка мистецька творів до виставки (твори живопису, декоративного мистецтва, архітектури, архітектурні проєкти, скульптурні, графічні, фотографічні твори, твори дизайну): Підготовка робіт до участі у всеукраїнській виставці ",226,"1.12.2 Підготовка мистецька творів до виставки (твори живопису, декоративного мистецтва, архітектури, архітектурні проєкти, скульптурні, графічні, фотографічні твори, твори дизайну): Підготовка робіт до участі у всеукраїнській виставці ","100 годин на 1 особу"]
["1.12.3","Підготовка мистецька творів до виставки (твори живопису, декоративного мистецтва, архітектури, архітектурні проєкти, скульптурні, графічні, фотографічні твори, твори дизайну): Підготовка робіт до участі у міській (регіональній) виставці ",227,"1.12.3 Підготовка мистецька творів до виставки (твори живопису, декоративного мистецтва, архітектури, архітектурні проєкти, скульптурні, графічні, фотографічні твори, твори дизайну): Підготовка робіт до участі у міській (регіональній) виставці ","50 годин на 1 особу"]
["1.12.4","Підготовка мистецька творів до виставки (твори живопису, декоративного мистецтва, архітектури, архітектурні проєкти, скульптурні, графічні, фотографічні твори, твори дизайну): Підготовка робіт до персональної виставки ",228,"1.12.4 Підготовка мистецька творів до виставки (твори живопису, декоративного мистецтва, архітектури, архітектурні проєкти, скульптурні, графічні, фотографічні твори, твори дизайну): Підготовка робіт до персональної виставки ","150 годин на 1 особу"]
["1.13.1","Підготовка наукових статей та тез доповідей / виступів, FAIR-даних іноземною мовою: Підготовка проєктних пропозицій на конкурс / грант, який проводять на вітчизняному або міжнародному рівні ",229,"1.13.1 Підготовка наукових статей та тез доповідей / виступів, FAIR-даних іноземною мовою: Підготовка проєктних пропозицій на конкурс / грант, який проводять на вітчизняному або міжнародному рівні ","коефіцієнт 1,5 від відповідної норми за п. 1.2"]
["1.13.2","Підготовка наукових статей та тез доповідей / виступів, FAIR-даних іноземною мовою: Підготовка монографії до публікації вітчизняних видавництвах: колективна монографія",230,"1.13.2 Підготовка наукових статей та тез доповідей / виступів, FAIR-даних іноземною мовою: Підготовка монографії до публікації вітчизняних видавництвах: колективна монографія","коефіцієнт 1,5 від відповідної норми за п. 1.5"]
["1.13.3","Підготовка наукових статей та тез доповідей / виступів, FAIR-даних іноземною мовою: Підготовка монографії до публікації вітчизняних видавництвах: одноосібна монографія",231,"1.13.3 Підготовка наукових статей та тез доповідей / виступів, FAIR-даних іноземною мовою: Підготовка монографії до публікації вітчизняних видавництвах: одноосібна монографія","коефіцієнт 1,5 від відповідної норми за п. 1.5"]
["1.13.4","Підготовка наукових статей та тез доповідей / виступів, FAIR-даних іноземною мовою: Підготовка монографії до публікації в закордонних видавництвах: колективна монографія",232,"1.13.4 Підготовка наукових статей та тез доповідей / виступів, FAIR-даних іноземною мовою: Підготовка монографії до публікації в закордонних видавництвах: колективна монографія","коефіцієнт 1,5 від відповідної норми за п. 1.6"]
["1.13.5","Підготовка наукових статей та тез доповідей / виступів, FAIR-даних іноземною мовою: Підготовка монографії до публікації в закордонних видавництвах: одноосібна монографія",233,"1.13.5 Підготовка наукових статей та тез доповідей / виступів, FAIR-даних іноземною мовою: Підготовка монографії до публікації в закордонних видавництвах: одноосібна монографія","коефіцієнт 1,5 від відповідної норми за п. 1.6"]
["1.13.6","Підготовка наукових статей та тез доповідей / виступів, FAIR-даних іноземною мовою: Підготовка монографії /розділу монографії до публікації в НМБД ",234,"1.13.6 Підготовка наукових статей та тез доповідей / виступів, FAIR-даних іноземною мовою: Підготовка монографії /розділу монографії до публікації в НМБД ","коефіцієнт 1,5 від відповідної норми за п. 1.7"]
["1.13.7","Підготовка наукових статей та тез доповідей / виступів, FAIR-даних іноземною мовою: Підготовка наукових статей: у журналах, що індексуються в міжнародних наукометричних базах Scopus, Web of Science",235,"1.13.7 Підготовка наукових статей та тез доповідей / виступів, FAIR-даних іноземною мовою: Підготовка наукових статей: у журналах, що індексуються в міжнародних наукометричних базах Scopus, Web of Science","коефіцієнт 1,5 від відповідної норми за п. 1.8"]
["1.13.8","Підготовка наукових статей та тез доповідей / виступів, FAIR-даних іноземною мовою: Підготовка наукових статей: у наукових виданнях, що індексуються в інших провідних міжнародних наукометричних базах, визнаних МОН",236,"1.13.8 Підготовка наукових статей та тез доповідей / виступів, FAIR-даних іноземною мовою: Підготовка наукових статей: у наукових виданнях, що індексуються в інших провідних міжнародних наукометричних базах, визнаних МОН","коефіцієнт 1,5 від відповідної норми за п. 1.8"]
["1.13.9","Підготовка наукових статей та тез доповідей / виступів, FAIR-даних іноземною мовою: Підготовка наукових статей: у закордонних журналах",237,"1.13.9 Підготовка наукових статей та тез доповідей / виступів, FAIR-даних іноземною мовою: Підготовка наукових статей: у закордонних журналах","коефіцієнт 1,5 від відповідної норми за п. 1.8"]
["1.13.10","Підготовка наукових статей та тез доповідей / виступів, FAIR-даних іноземною мовою: Підготовка наукових статей: у фахових вітчизняних виданнях",238,"1.13.10 Підготовка наукових статей та тез доповідей / виступів, FAIR-даних іноземною мовою: Підготовка наукових статей: у фахових вітчизняних виданнях","коефіцієнт 1,5 від відповідної норми за п. 1.8"]
["1.13.11","Підготовка наукових статей та тез доповідей / виступів, FAIR-даних іноземною мовою: Підготовка наукових статей: у вітчизняних виданнях (що не входять до наукометричних баз даних)",239,"1.13.11 Підготовка наукових статей та тез доповідей / виступів, FAIR-даних іноземною мовою: Підготовка наукових статей: у вітчизняних виданнях (що не входять до наукометричних баз даних)","коефіцієнт 1,5 від відповідної норми за п. 1.8"]
["1.13.12","Підготовка наукових статей та тез доповідей / виступів, FAIR-даних іноземною мовою: Підготовка тез доповідей: тези доповіді в виданнях, що індексуються в міжнародних науко метричних базах Scopus, Web of Science",240,"1.13.12 Підготовка наукових статей та тез доповідей / виступів, FAIR-даних іноземною мовою: Підготовка тез доповідей: тези доповіді в виданнях, що індексуються в міжнародних науко метричних базах Scopus, Web of Science","коефіцієнт 1,5 від відповідної норми за п. 1.9"]
["1.13.13","Підготовка наукових статей та тез доповідей / виступів, FAIR-даних іноземною мовою: Підготовка тез доповідей: тези доповіді в закордонних виданнях",241,"1.13.13 Підготовка наукових статей та тез доповідей / виступів, FAIR-даних іноземною мовою: Підготовка тез доповідей: тези доповіді в закордонних виданнях","коефіцієнт 1,5 від відповідної норми за п. 1.9"]
["1.13.14","Підготовка наукових статей та тез доповідей / виступів, FAIR-даних іноземною мовою: Підготовка тез доповідей: тези доповіді у вітчизняних виданнях",242,"1.13.14 Підготовка наукових статей та тез доповідей / виступів, FAIR-даних іноземною мовою: Підготовка тез доповідей: тези доповіді у вітчизняних виданнях","коефіцієнт 1,5 від відповідної норми за п. 1.9"]
["1.13.15","Підготовка наукових статей та тез доповідей / виступів, FAIR-даних іноземною мовою: Підготовка до виступу з доповіддю (очна участь, без публікації тез)",243,"1.13.15 Підготовка наукових статей та тез доповідей / виступів, FAIR-даних іноземною мовою: Підготовка до виступу з доповіддю (очна участь, без публікації тез)","коефіцієнт 1,5 від відповідної норми за п. 1.10"]
["1.13.16","Підготовка наукових статей та тез доповідей / виступів, FAIR-даних іноземною мовою: Публікація набору дослідницьких (наукових) даних, зокрема FAIR-даних",244,"1.13.16 Підготовка наукових статей та тез доповідей / виступів, FAIR-даних іноземною мовою: Публікація набору дослідницьких (наукових) даних, зокрема FAIR-даних","коефіцієнт 1,5 від відповідної норми за п. 1.11"]
["2.1.1","Керівництво науковою роботою студентів: з підготовки наукових статей",245,"2.1.1 Керівництво науковою роботою студентів: з підготовки наукових статей","до 50 годин на 1 ум. друк. арк."]
["2.1.2","Керівництво науковою роботою студентів: з підготовки тез доповідей на конференцію",246,"2.1.2 Керівництво науковою роботою студентів: з підготовки тез доповідей на конференцію","до 50 годин на 1 ум. друк. арк."]
["2.1.3","Керівництво науковою роботою студентів: з підготовки заявок на видачу охоронних документів",247,"2.1.3 Керівництво науковою роботою студентів: з підготовки заявок на видачу охоронних документів","до 50 годин на 1 об'єкт"]
["2.2.1","Підготовка студентів та призерів до участі в конкурсах: міжнародний рівень",248,"2.2.1 Підготовка студентів та призерів до участі в конкурсах: міжнародний рівень","до 100 годин на 1 наукову роботу"]
["2.2.2","Підготовка студентів та призерів до участі в конкурсах: всеукраїнський рівень (І етап)",249,"2.2.2 Підготовка студентів та призерів до участі в конкурсах: всеукраїнський рівень (І етап)","до 10 годин на 1 наукову роботу"]
["2.2.3","Підготовка студентів та призерів до участі в конкурсах: всеукраїнський рівень (ІІ етап)",250,"2.2.3 Підготовка студентів та призерів до участі в конкурсах: всеукраїнський рівень (ІІ етап)","до 50 годин на 1 наукову роботу"]
["2.2.4","Підготовка студентів та призерів до участі в конкурсах: регіональний рівень",251,"2.2.4 Підготовка студентів та призерів до участі в конкурсах: регіональний рівень","до 30 годин на 1 наукову роботу"]
["2.2.5","Підготовка студентів та призерів до участі в конкурсах: університетський рівень",252,"2.2.5 Підготовка студентів та призерів до участі в конкурсах: університетський рівень","до 10 годин на 1 наукову роботу"]
["2.3.1","Підготовка студентів та призерів до участі в олімпіаді: міжнародний рівень",253,"2.3.1 Підготовка студентів та призерів до участі в олімпіаді: міжнародний рівень","до 70 годин на 1 студента"]
["2.3.2","Підготовка студентів та призерів до участі в олімпіаді: всеукраїнський рівень (І етап)",254,"2.3.2 Підготовка студентів та призерів до участі в олімпіаді: всеукраїнський рівень (І етап)","до 10 годин на 1 студента"]
["2.3.3","Підготовка студентів та призерів до участі в олімпіаді: всеукраїнський рівень (ІІ етап)",255,"2.3.3 Підготовка студентів та призерів до участі в олімпіаді: всеукраїнський рівень (ІІ етап)","до 50 годин на 1 студента"]
["2.3.4","Підготовка студентів та призерів до участі в олімпіаді: регіональний рівень",256,"2.3.4 Підготовка студентів та призерів до участі в олімпіаді: регіональний рівень","до 30 годин на 1 студента"]
["2.3.5","Підготовка студентів та призерів до участі в олімпіаді: університетський рівень",257,"2.3.5 Підготовка студентів та призерів до участі в олімпіаді: університетський рівень","до 10 годин на 1 студента"]
["2.4","Керівництво студентським науковим гуртком, групою з науково-дослідної проблеми",258,"2.4 Керівництво студентським науковим гуртком, групою з науково-дослідної проблеми","до 50 годин на навчальний рік"]
["2.5","Керівництво / консультування науковою роботою аспірантів / докторантів",259,"2.5 Керівництво / консультування науковою роботою аспірантів / докторантів","до 50 годин щороку на одного здобувача"]
["2.6","Складання кандидатських іспитів (для аспірантів, що навчаються без відриву від виробництва / (очна (денна) форми здобуття освіти))",260,"2.6 Складання кандидатських іспитів (для аспірантів, що навчаються без відриву від виробництва / (очна (денна) форми здобуття освіти))","до 50 годин на екзамен"]
["2.7","Перевірка наукових проєктів здобувачів ступеня доктора філософії",261,"2.7 Перевірка наукових проєктів здобувачів ступеня доктора філософії","голова та члени комісії: до 25 годин на 1 захід"]
["2.8","Захист наукових проєктів здобувачів ступеня доктора філософії",262,"2.8 Захист наукових проєктів здобувачів ступеня доктора філософії","до 0,5 години на захист одного проєкту кожному члену комісії"]
["2.9.1","Захист дисертацій (для здобувачів ступеня доктора наук, які навчалися за кошти фізичних або юридичних осіб)",263,"2.9.1 Захист дисертацій (для здобувачів ступеня доктора наук, які навчалися за кошти фізичних або юридичних осіб)","на здобуття ступеня доктора наук: до 500 годин"]
["2.9.2","Захист дисертацій (для здобувачів ступеня кандидата наук, доктора філософії, які навчалися за кошти фізичних або юридичних осіб)",264,"2.9.2 Захист дисертацій (для здобувачів ступеня кандидата наук, доктора філософії, які навчалися за кошти фізичних або юридичних осіб)","на здобуття ступеня кандидата наук, доктора філософії: до 300 годин"]
["2.10","Керівництво науковою школою",265,"2.10 Керівництво науковою школою","до 50 годин на навчальний рік"]
["2.11","Робота за дорученням адміністрації ",266,"2.11 Робота за дорученням адміністрації ","кількість годин відповідно до наказу (розпорядження) ректора"]
["3.1","Укладання, експертиза та рецензування наукових праць (наукових статей, монографій, проєктних пропозицій, дисертацій та рефератів дисертацій, збірників наукових праць, студентських наукових робіт тощо)",267,{"$f":"CONCATENATE(A79,\" \",B79)","v":"3.1 Укладання, експертиза та рецензування наукових праць (наукових статей, монографій, проєктних пропозицій, дисертацій та рефератів дисертацій, збірників наукових праць, студентських наукових робіт тощо)"},"до 20 годин на 1 ум. друк. арк."]
["3.2","Робота в науково-експертній комісії ХНЕУ ім. С. Кузнеця",268,"3.2 Робота в науково-експертній комісії ХНЕУ ім. С. Кузнеця","до 6 годин на проведення однієї експертизи одним експертом"]
["3.3","Робота в комісії кафедри щодо звітування аспірантів /докторантів про виконання індивідуального плану роботи",269,"3.3 Робота в комісії кафедри щодо звітування аспірантів /докторантів про виконання індивідуального плану роботи","до 30 год. на одного докторанта; до 18 год. на одного аспіранта 3 року підготовки;  до 12 годин на одного аспіранта 2 року підготовки;  до 6 годин на одного аспіранта 1 року підготовки."]
["3.4","Робота в комісії з узгодження тем дисертацій",270,"3.4 Робота в комісії з узгодження тем дисертацій","перевірка та рецензування, обґрунтування теми дисертації аспіранта / докторанта одним членом комісії: 3 години; участь у засіданні комісії: 5 годин на одне засідання"]
["3.5.1","Робота в редколегіях наукових журналів та редакційних радах: голова редколегії",271,"3.5.1 Робота в редколегіях наукових журналів та редакційних радах: голова редколегії","голова редколегії: до 100 годин"]
["3.5.2","Робота в редколегіях наукових журналів та редакційних радах: заступник голови редколегії",272,"3.5.2 Робота в редколегіях наукових журналів та редакційних радах: заступник голови редколегії","заступник голови редколегії: до 50 годин"]
["3.5.3","Робота в редколегіях наукових журналів та редакційних радах: члени редколегії",273,"3.5.3 Робота в редколегіях наукових журналів та редакційних радах: члени редколегії","члени редколегії: до 50 годин"]
["3.6.1","Укладання, експертиза та рецензування наукових праць (наукових статей, монографій, проєктних пропозицій, дисертацій та рефератів дисертацій, збірників наукових праць, студентських наукових робіт тощо) іноземною мовою",274,"3.6.1 Укладання, експертиза та рецензування наукових праць (наукових статей, монографій, проєктних пропозицій, дисертацій та рефератів дисертацій, збірників наукових праць, студентських наукових робіт тощо) іноземною мовою","коефіцієнт 1,5 від норми п. 3.1"]
["3.6.2","Робота в науково-експертній комісії ХНЕУ Робота в науково-експертній комісії ХНЕУ ім. С. Кузнеця іноземною мовою",275,"3.6.2 Робота в науково-експертній комісії ХНЕУ Робота в науково-експертній комісії ХНЕУ ім. С. Кузнеця іноземною мовою","коефіцієнт 1,5 від норми п. 3.2"]
["3.7.1","Виконання обов'язків у докторських СВР із захисту дисертацій: Голова / заступник голови докторської  СВР",276,"3.7.1 Виконання обов'язків у докторських СВР із захисту дисертацій: Голова / заступник голови докторської  СВР","Голова / заступник голови докторської СВР: до 32 години на один захист дисертації"]
["3.7.2","Виконання обов'язків у докторських СВР із захисту дисертацій: члени СВР",277,"3.7.2 Виконання обов'язків у докторських СВР із захисту дисертацій: члени СВР","члени СВР: до 5 годин на один захист дисертації"]
["3.7.3","Виконання обов'язків у докторських СВР із захисту дисертацій: вчений секретар СВР",278,"3.7.3 Виконання обов'язків у докторських СВР із захисту дисертацій: вчений секретар СВР","вчений секретар СВР: 25 годин на один захист дисертації"]
["3.8.1","Виконання обов'язків у разових СВР із захисту дисертацій: голова разової СВР / відповідальна особа за забезпечення діяльності разових СВР",279,"3.8.1 Виконання обов'язків у разових СВР із захисту дисертацій: голова разової СВР / відповідальна особа за забезпечення діяльності разових СВР","голова разової СВР / відповідальна особа за забезпечення діяльності разових СВР: 32 години на один захист дисертації"]
["3.8.2","Виконання обов'язків у разових СВР із захисту дисертацій: рецензенти",280,"3.8.2 Виконання обов'язків у разових СВР із захисту дисертацій: рецензенти","рецензенти: до 3 годин на один захист дисертації"]
["3.8.3","Виконання обов'язків у разових СВР із захисту дисертацій: Опоненти",281,"3.8.3 Виконання обов'язків у разових СВР із захисту дисертацій: Опоненти","Опоненти (на один захист дисертації):  – 32 години"]

{"sheet":"органз","index":7,"n_rows":76,"n_cols":5,"rows_kept":76,"cut":false,"hidden":false,"merged":[]}
[]
["ПП","ПЕРЕЛІК ОРГАНІЗАЦІЙНИХ РОБІТ","номер"]
[]
[]
[]
[]
[]
[]
[]
[]
[]
[]
["ПП","ПЕРЕЛІК ОРГАНІЗАЦІЙНИХ РОБІТ","номер"]
["1.1.1","Участь у підготовці та проведенні студентських та учнівських олімпіад: робота в організаційному комітеті",301,{"$f":"CONCATENATE(A14,\" \", B14)","v":"1.1.1 Участь у підготовці та проведенні студентських та учнівських олімпіад: робота в організаційному комітеті"},"до 20 годин на навчальний рік"]
["1.1.2","Участь у підготовці та проведенні студентських та учнівських олімпіад: проведення олімпіад",302,{"$f":"CONCATENATE(A15,\" \", B15)","v":"1.1.2 Участь у підготовці та проведенні студентських та учнівських олімпіад: проведення олімпіад"},"3 години для проведення олімпіад на потік (групу);"]
["1.1.3","Участь у підготовці та проведенні студентських та учнівських олімпіад: перевірка робіт учасника олімпіади",303,"1.1.3 Участь у підготовці та проведенні студентських та учнівських олімпіад: перевірка робіт учасника олімпіади","0,33 години на перевірку однієї роботи учасника олімпіади"]
["1.2","Участь у міжнародних Літніх школах, семінарах під патронатом МОН України, ЄС чи університетів-партнерів ХНЕУ ім. С. Кузнеця ",304,"1.2 Участь у міжнародних Літніх школах, семінарах під патронатом МОН України, ЄС чи університетів-партнерів ХНЕУ ім. С. Кузнеця ","6 годин на день (не більше 40 годин на навчальний рік)"]
["1.3","Організація та проведення освітніх та наукових заходів (конференцій, круглих столів, тематичних дискусій, виставок, конкурсів наукових робіт тощо)",305,"1.3 Організація та проведення освітніх та наукових заходів (конференцій, круглих столів, тематичних дискусій, виставок, конкурсів наукових робіт тощо)","до 20 годин на 1 захід"]
["2.1","Організація та проведення культурно-мистецьких, спортивних заходів для здобувачів вищої освіти у позанавчальний час ",306,"2.1 Організація та проведення культурно-мистецьких, спортивних заходів для здобувачів вищої освіти у позанавчальний час ","до 20 годин на 1 захід"]
["2.2","Організація та проведення культурно-мистецьких, спортивних заходів для НПП і співробітників університету",307,"2.2 Організація та проведення культурно-мистецьких, спортивних заходів для НПП і співробітників університету","до 20 годин на 1 захід"]
["3.1","Виконання обов'язків керівника студентської академічної групи з виховної роботи (КСАГВР)",308,"3.1 Виконання обов'язків керівника студентської академічної групи з виховної роботи (КСАГВР)","до 70 годин на навчальний рік"]
["3.2","Організація і проведення консультацій та підготовка школярів до учнівських предметних олімпіад, конкурсів Малої академії наук, турнірів юних інформатиків тощо",309,"3.2 Організація і проведення консультацій та підготовка школярів до учнівських предметних олімпіад, конкурсів Малої академії наук, турнірів юних інформатиків тощо","до 20 годин на 1 захід"]
["3.3","Організація програми перебування студентів іноземних країн, аспірантів (РhD), викладачів у рамках програм мобільності ",310,"3.3 Організація програми перебування студентів іноземних країн, аспірантів (РhD), викладачів у рамках програм мобільності ","до 30 годин на рік"]
["4.1","Керівництво стажуванням слухачів закладів вищої освіти післядипломної освіти та структурних підрозділів післядипломної освіти закладів вищої освіти на підприємствах, в установах та організаціях ",311,"4.1 Керівництво стажуванням слухачів закладів вищої освіти післядипломної освіти та структурних підрозділів післядипломної освіти закладів вищої освіти на підприємствах, в установах та організаціях ","5 годин на тиждень на одного слухача"]
["4.2","Рецензування рефератів слухачів закладів вищої освіти післядипломної освіти та структурних підрозділів післядипломної освіти закладів вищої освіти",312,"4.2 Рецензування рефератів слухачів закладів вищої освіти післядипломної освіти та структурних підрозділів післядипломної освіти закладів вищої освіти","3 години на реферат"]
["4.3","Керівництво, консультування, рецензування та проведення захисту випускних робіт слухачів закладів вищої освіти післядипломної освіти та структурних підрозділів післядипломної освіти закладів вищої освіти",313,"4.3 Керівництво, консультування, рецензування та проведення захисту випускних робіт слухачів закладів вищої освіти післядипломної освіти та структурних підрозділів післядипломної освіти закладів вищої освіти","до 10 годин на одного слухача, у тому числі: по 0,33 години голові та кожному членові комісії; до 2 годин рецензенту"]
["4.4","Проведення випускних екзаменів слухачів закладів вищої освіти  післядипломної освіти та структурних підрозділів післядипломної освіти закладів вищої освіти  ",314,"4.4 Проведення випускних екзаменів слухачів закладів вищої освіти  післядипломної освіти та структурних підрозділів післядипломної освіти закладів вищої освіти  ","0,5 години на одного слухача голові та кожному членові екзаменаційної комісії"]
["4.5","Керівництво програмою підвищення кваліфікації, стажуванням, педагогічних, науково-педагогічних, наукових працівників",315,"4.5 Керівництво програмою підвищення кваліфікації, стажуванням, педагогічних, науково-педагогічних, наукових працівників","до 20 годин на 1 програму"]
["5.1","Проведення профорієнтаційної роботи в соціальних мережах",316,"5.1 Проведення профорієнтаційної роботи в соціальних мережах","до 20 годин на навчальний рік"]
["5.2","Організація та проведення екскурсій університетом",317,"5.2 Організація та проведення екскурсій університетом","до 2 годин на захід"]
["5.3","Участь у роботі постійних виїзних (мобільних) груп з профорієнтації",318,"5.3 Участь у роботі постійних виїзних (мобільних) груп з профорієнтації","до 10 годин на захід"]
["5.4","Організація співробітництва з закладами освіти, іншими установами з питань профорієнтації",319,"5.4 Організація співробітництва з закладами освіти, іншими установами з питань профорієнтації","до 10 годин"]
["5.5","Участь у проведенні Літньої, Зимової, Весняної, Осінньої школи (занять та заходів) ",320,"5.5 Участь у проведенні Літньої, Зимової, Весняної, Осінньої школи (занять та заходів) ","до 10 годин на захід"]
["5.6","Участі в розробці заходів та проведенні поточної роботи з формуванні іміджу університету",321,"5.6 Участі в розробці заходів та проведенні поточної роботи з формуванні іміджу університету","до 40 годин кожному члену робочої групи"]
["5.7","Розроблення інформаційних матеріалів про освітні програми, кафедри, тощо (буклети, плакати, презентації тощо)",322,"5.7 Розроблення інформаційних матеріалів про освітні програми, кафедри, тощо (буклети, плакати, презентації тощо)","до 10 годин на одиницю"]
["5.8","Розроблення правил прийому до університету ",323,"5.8 Розроблення правил прийому до університету ","до 50 годин на навчальний рік кожному члену робочої групи"]
["5.9.1","Участь у підготовці та проведенні пробних ЗНО, НМТ інших подібних заходах: Перевірка завдань: тестових ",324,"5.9.1 Участь у підготовці та проведенні пробних ЗНО, НМТ інших подібних заходах: Перевірка завдань: тестових ","0,16 години на роботу 1 учасника"]
["5.9.2","Участь у підготовці та проведенні пробних ЗНО, НМТ інших подібних заходах: Перевірка завдань: відкритої форми з розгорнутою відповіддю",325,"5.9.2 Участь у підготовці та проведенні пробних ЗНО, НМТ інших подібних заходах: Перевірка завдань: відкритої форми з розгорнутою відповіддю","0,25 години на кожного учасника"]
["5.9.3","Участь у підготовці та проведенні пробних ЗНО, НМТ інших подібних заходах: Перевірка завдань: творів",326,"5.9.3 Участь у підготовці та проведенні пробних ЗНО, НМТ інших подібних заходах: Перевірка завдань: творів","0,33 години на кожного учасника"]
["5.9.4","Участь у підготовці та проведенні пробних ЗНО, НМТ інших подібних заходах: Участь в організаційному комітеті",327,"5.9.4 Участь у підготовці та проведенні пробних ЗНО, НМТ інших подібних заходах: Участь в організаційному комітеті","10 годин на 1 захід"]
["6.1","Виконання обов’язків гаранта освітньої програми ",328,"6.1 Виконання обов’язків гаранта освітньої програми ","до 50 годин на навчальний рік"]
["6.2","Робота в складі робочої групи з розробки та / або оновлення освітньої програми",329,"6.2 Робота в складі робочої групи з розробки та / або оновлення освітньої програми","до 25 годин на навчальний рік"]
["6.3.1","Виконання обов'язків заступника директора (керівника) навчально-наукового інституту / декана на громадських засадах: з навчальної роботи",330,"6.3.1 Виконання обов'язків заступника директора (керівника) навчально-наукового інституту / декана на громадських засадах: з навчальної роботи","з навчальної роботи: до 500 годин на навчальний рік"]
["6.3.2","Виконання обов'язків заступника директора (керівника) навчально-наукового інституту / декана на громадських засадах: за іншими видами роботи",331,"6.3.2 Виконання обов'язків заступника директора (керівника) навчально-наукового інституту / декана на громадських засадах: за іншими видами роботи","за іншими видами роботи: до 300 годин на навчальний рік"]
["6.4","Керівництво кафедрою, організація роботи кафедри (завідувач кафедри)",332,"6.4 Керівництво кафедрою, організація роботи кафедри (завідувач кафедри)","до 200 годин на навчальний рік"]
["6.5","Виконання обов'язків відповідального секретаря (заступника відпо-відального секретаря) приймальної комісії ",333,"6.5 Виконання обов'язків відповідального секретаря (заступника відпо-відального секретаря) приймальної комісії ","до 300 годин на навчальний рік"]
["6.6","Виконання обов'язків уповноваженої особи приймальної комісії з питань прийняття та розгляду електронних заяв",334,"6.6 Виконання обов'язків уповноваженої особи приймальної комісії з питань прийняття та розгляду електронних заяв","до 200 годин на навчальний рік"]
["6.7","Робота у відбіркових комісіях під час вступної кампанії ",335,"6.7 Робота у відбіркових комісіях під час вступної кампанії ","до 100 годин на навчальний рік"]
["6.8","Відповідальний за підтримку роботи сайта кафедри, інституту,  факультету, університету (розроблення кон-тенту, розміщення інформації)",336,"6.8 Відповідальний за підтримку роботи сайта кафедри, інституту,  факультету, університету (розроблення кон-тенту, розміщення інформації)","до 40 годин на навчальний рік"]
["6.9","Робота в комісії з академічної доброчесності",337,"6.9 Робота в комісії з академічної доброчесності","до 20 годин на навчальний рік"]
["6.10","Участь у засіданнях кафедри (організація, підготовка, доповідь)",338,"6.10 Участь у засіданнях кафедри (організація, підготовка, доповідь)","до 20 годин на навчальний рік"]
["6.11","Координатор міжнародної програми ",339,"6.11 Координатор міжнародної програми ","до 50 годин на навчальний рік"]
["6.12","Відповідальний за навчальну роботу на кафедрі",340,"6.12 Відповідальний за навчальну роботу на кафедрі","від 5 до 10 ставок на кафедрі – 50 годин на навчальний рік від 10,25 до 15 ставок на кафедрі – 75 годин на навчальний рік від 15,25 до 20 ставок на кафедрі – 100 годин на навчальний рік більше 20,25 ставок на кафедрі – 150 годин на навчальний рік"]
["6.13","Відповідальний за методичну роботу на кафедрі",341,"6.13 Відповідальний за методичну роботу на кафедрі","до 50 годин на навчальний рік"]
["6.14","Відповідальний за ПНС по кафедрі  ",342,"6.14 Відповідальний за ПНС по кафедрі  ","до 50 годин на навчальний рік"]
["6.15","Відповідальний за організацію практик на кафедрі",343,"6.15 Відповідальний за організацію практик на кафедрі","до 50 годин на навчальний рік"]
["6.16","Відповідальний за наукову роботу на кафедрі",344,"6.16 Відповідальний за наукову роботу на кафедрі","до 50 годин на навчальний рік"]
["6.17","Відповідальний за профорієнтаційну роботу на кафедрі",345,"6.17 Відповідальний за профорієнтаційну роботу на кафедрі","до 50 годин на навчальний рік"]
["6.18","Відповідальний за підвищення кваліфікації на кафедрі",346,"6.18 Відповідальний за підвищення кваліфікації на кафедрі","до 20 годин на навчальний рік"]
["6.19","Робота за дорученням адміністрації ",347,"6.19 Робота за дорученням адміністрації ","кількість годин відповідно до наказу (розпорядження) ректора"]
[null,null,null,{"$f":"CONCATENATE(A61,\" \", B61)","v":" "}]
[null,null,null," "]
[null,null,null," "]
[null,null,null," "]
[null,null,null," "]
[null,null,null," "]
[null,null,null," "]
[null,null,null," "]
[null,null,null," "]
[null,null,null," "]
[null,null,null," "]
[null,null,null," "]
[null,null,null," "]
[null,null,null," "]
[null,null,null," "]
[null,null,null," "]

{"sheet":"СПИСКИ","index":8,"n_rows":31,"n_cols":11,"rows_kept":31,"cut":false,"hidden":false,"merged":[]}
["ІНСИТУТИ / ФАКУЛЬТЕТ","код","Директор (керівник) навчально-наукового інституту / Декан","код","КАФЕДРИ","Завідувачі кафедр","ПОСАДИ","ВЧЕНЕ ЗВАННЯ","Примітка","Підсумковий результат ","Термін виконання"]
[]
["Міжнародних відносин",101,"Чернишов В.В.",101,"Міжнародних економічних відносин та безпеки бізнесу","Отенко І.П.","Завідувач кафедри","Професор","Зовнішній сумісник","Друкована праця","I семестр"]
["Економіки і права",201,"Бріль М.С.",102,"Міжнародних відносин і політичної філософії","Кузь О.М.","Професор","Доцент","Внутрішній сумісник","Рукопис","II семестр"]
["Менеджменту і маркетингу",301,"Вовк В.А.",103,"Педагогіки, іноземної філології та перекладу","Погорєлова Т. Ю.","Доцент","Старший науковий співробітник",null,null,"Протягом року"]
["Інформаційних технологій",401,"Яценко Р.М.",104,"Міжнародної економіки і менеджменту","Кот О.В.","Старший викладач","Старший дослідник"]
["Підготовки іноземних громадян",501,"Єрмоленко О.А.",105,"Статистики і економічного прогнозування","Раєвнєва О.В.","Викладач"]
[null,null,null,106,"Міжнародної торгівлі, митної справи та фінансових технологій","Тищенко В.Ф."]
[null,null,null,107,"Української філології та історії ","Черемська О.С."]
[null,null,null,201,"Соціальної економіки","Назарова Г.В."]
[null,null,null,202,"Економіки підприємства та організації бізнесу","Власенко Т.А."]
[null,null,null,203,"Правового регулювання економіки","Шинкарьов Ю. В."]
[null,null,null,204,"Державного управління, публічного адміністрування та економічної політики","Гавкалова Н.Л."]
[null,null,null,205,"Фінансів і кредиту ","Журавльова І.В."]
[null,null,null,206,"Підприємництва, торгівлі та туристичного бізнесу","Салун М.М."]
[null,null,null,207,"Готельного, ресторанного бізнесу і крафтових технологій","Давидова О.Ю."]
[null,null,null,208,"Обліку і бізнес-консалтингу","Пилипенко А.А."]
[null,null,null,301,"Менеджменту, логістики та інновацій","Ястремська О.М."]
[null,null,null,302,"Менеджменту, бізнесу і адміністрування","Лепейко Т. І."]
[null,null,null,303,"Маркетингу","Гриневич Л.В."]
[null,null,null,304,"Бізнес-журналістики і цифрових медіа","Яресько К.В."]
[null,null,null,305,"Психології і соціології","Богдан Ж.Б."]
[null,null,null,306,"Креативного менеджменту і дизайну","Близнюк Т. П."]
[null,null,null,401,"Інформаційних систем","Бондаренко Д.О."]
[null,null,null,402,"Мультимедійних систем і технологій","Пушкар О.І."]
[null,null,null,403,"Економічної кібернетики і системного аналізу","Шабельник Т.В."]
[null,null,null,404,"Інформатики та комп’ютерної техніки ","Удовенко С.Г."]
[null,null,null,405,"Кібербезпеки та інформаційних технологій","Старкова О.В."]
[null,null,null,501,"Економіко-математичного моделювання","Малярець Л.М."]
[null,null,null,502,"Здорового способу життя, технологій і безпеки життєдіяльності","Івашура А.А."]
[null,null,null,503,"Іноземних мов та міжкультурної комунікації","Савицька Л.В."]